{"text_format":"3","workbook":"xlsx","n_sheets":2,"sheets":["Raspored sati","Popis predavanja"],"not_rendered":{"defined_names":17},"read":"whole","date_system":"1900"}

{"sheet":"Raspored sati","index":0,"n_rows":56,"n_cols":9,"rows_kept":56,"merged":[[0,1,1,5],[0,8,1,8]]}
[null,"RASPORED SATI",{"$nulls":4},"POČETAK \nRASPOREDA","VREMENSKI \nINTERVAL","Popis predavanja"]
[{"$nulls":6},"08:00:00","15 MIN"]
[null,"VRIJEME","NEDJELJA","PONEDJELJAK","UTORAK","SRIJEDA","ČETVRTAK","PETAK","SUBOTA"]
[null,{"$f":"PočetakRasporeda","v":"08:00:00"},{"$f":"IFERROR(INDEX(PopisPredavanja[],MATCH(SUMPRODUCT((PopisPredavanja[DAN]=Raspored_sati[[#Headers],[NEDJELJA]])*(ROUNDDOWN($B4,10)>=ROUNDDOWN(PopisPredavanja[VRIJEME POČETKA],10))*($B4<=PopisPredavanja[VRIJEME ZAVRŠETKA]),PopisPredavanja[JEDINSTVENO]),PopisPredavanja[JEDINSTVENO],0),2),0)","v":0},{"$f":"IFERROR(INDEX(PopisPredavanja[],MATCH(SUMPRODUCT((PopisPredavanja[DAN]=Raspored_sati[[#Headers],[PONEDJELJAK]])*(ROUNDDOWN($B4,10)>=ROUNDDOWN(PopisPredavanja[VRIJEME POČETKA],10))*($B4<=PopisPredavanja[VRIJEME ZAVRŠETKA]),PopisPredavanja[JEDINSTVENO]),PopisPredavanja[JEDINSTVENO],0),2),0)","v":0},{"$f":"IFERROR(INDEX(PopisPredavanja[],MATCH(SUMPRODUCT((PopisPredavanja[DAN]=Raspored_sati[[#Headers],[UTORAK]])*(ROUNDDOWN($B4,10)>=ROUNDDOWN(PopisPredavanja[VRIJEME POČETKA],10))*($B4<=PopisPredavanja[VRIJEME ZAVRŠETKA]),PopisPredavanja[JEDINSTVENO]),PopisPredavanja[JEDINSTVENO],0),2),0)","v":0},{"$f":"IFERROR(INDEX(PopisPredavanja[],MATCH(SUMPRODUCT((PopisPredavanja[DAN]=Raspored_sati[[#Headers],[SRIJEDA]])*(ROUNDDOWN($B4,10)>=ROUNDDOWN(PopisPredavanja[VRIJEME POČETKA],10))*($B4<=PopisPredavanja[VRIJEME ZAVRŠETKA]),PopisPredavanja[JEDINSTVENO]),PopisPredavanja[JEDINSTVENO],0),2),0)","v":0},{"$f":"IFERROR(INDEX(PopisPredavanja[],MATCH(SUMPRODUCT((PopisPredavanja[DAN]=Raspored_sati[[#Headers],[ČETVRTAK]])*(ROUNDDOWN($B4,10)>=ROUNDDOWN(PopisPredavanja[VRIJEME POČETKA],10))*($B4<=PopisPredavanja[VRIJEME ZAVRŠETKA]),PopisPredavanja[JEDINSTVENO]),PopisPredavanja[JEDINSTVENO],0),2),0)","v":0},{"$f":"IFERROR(INDEX(PopisPredavanja[],MATCH(SUMPRODUCT((PopisPredavanja[DAN]=Raspored_sati[[#Headers],[PETAK]])*(ROUNDDOWN($B4,10)>=ROUNDDOWN(PopisPredavanja[VRIJEME POČETKA],10))*($B4<=PopisPredavanja[VRIJEME ZAVRŠETKA]),PopisPredavanja[JEDINSTVENO]),PopisPredavanja[JEDINSTVENO],0),2),0)","v":0},{"$f":"IFERROR(INDEX(PopisPredavanja[],MATCH(SUMPRODUCT((PopisPredavanja[DAN]=Raspored_sati[[#Headers],[SUBOTA]])*(ROUNDDOWN($B4,10)>=ROUNDDOWN(PopisPredavanja[VRIJEME POČETKA],10))*($B4<=PopisPredavanja[VRIJEME ZAVRŠETKA]),PopisPredavanja[JEDINSTVENO]),PopisPredavanja[JEDINSTVENO],0),2),0)","v":0}]
[null,{"$f":"B4+Interval","v":"08:15:00"},{"$f":"IFERROR(INDEX(PopisPredavanja[],MATCH(SUMPRODUCT((PopisPredavanja[DAN]=Raspored_sati[[#Headers],[NEDJELJA]])*(ROUNDDOWN($B5,10)>=ROUNDDOWN(PopisPredavanja[VRIJEME POČETKA],10))*($B5<=PopisPredavanja[VRIJEME ZAVRŠETKA]),PopisPredavanja[JEDINSTVENO]),PopisPredavanja[JEDINSTVENO],0),2),0)","v":0},{"$f":"IFERROR(INDEX(PopisPredavanja[],MATCH(SUMPRODUCT((PopisPredavanja[DAN]=Raspored_sati[[#Headers],[PONEDJELJAK]])*(ROUNDDOWN($B5,10)>=ROUNDDOWN(PopisPredavanja[VRIJEME POČETKA],10))*($B5<=PopisPredavanja[VRIJEME ZAVRŠETKA]),PopisPredavanja[JEDINSTVENO]),PopisPredavanja[JEDINSTVENO],0),2),0)","v":"MTH-113"},{"$f":"IFERROR(INDEX(PopisPredavanja[],MATCH(SUMPRODUCT((PopisPredavanja[DAN]=Raspored_sati[[#Headers],[UTORAK]])*(ROUNDDOWN($B5,10)>=ROUNDDOWN(PopisPredavanja[VRIJEME POČETKA],10))*($B5<=PopisPredavanja[VRIJEME ZAVRŠETKA]),PopisPredavanja[JEDINSTVENO]),PopisPredavanja[JEDINSTVENO],0),2),0)","v":0},{"$f":"IFERROR(INDEX(PopisPredavanja[],MATCH(SUMPRODUCT((PopisPredavanja[DAN]=Raspored_sati[[#Headers],[SRIJEDA]])*(ROUNDDOWN($B5,10)>=ROUNDDOWN(PopisPredavanja[VRIJEME POČETKA],10))*($B5<=PopisPredavanja[VRIJEME ZAVRŠETKA]),PopisPredavanja[JEDINSTVENO]),PopisPredavanja[JEDINSTVENO],0),2),0)","v":"MTH-113"},{"$f":"IFERROR(INDEX(PopisPredavanja[],MATCH(SUMPRODUCT((PopisPredavanja[DAN]=Raspored_sati[[#Headers],[ČETVRTAK]])*(ROUNDDOWN($B5,10)>=ROUNDDOWN(PopisPredavanja[VRIJEME POČETKA],10))*($B5<=PopisPredavanja[VRIJEME ZAVRŠETKA]),PopisPredavanja[JEDINSTVENO]),PopisPredavanja[JEDINSTVENO],0),2),0)","v":0},{"$f":"IFERROR(INDEX(PopisPredavanja[],MATCH(SUMPRODUCT((PopisPredavanja[DAN]=Raspored_sati[[#Headers],[PETAK]])*(ROUNDDOWN($B5,10)>=ROUNDDOWN(PopisPredavanja[VRIJEME POČETKA],10))*($B5<=PopisPredavanja[VRIJEME ZAVRŠETKA]),PopisPredavanja[JEDINSTVENO]),PopisPredavanja[JEDINSTVENO],0),2),0)","v":"MTH-113"},{"$f":"IFERROR(INDEX(PopisPredavanja[],MATCH(SUMPRODUCT((PopisPredavanja[DAN]=Raspored_sati[[#Headers],[SUBOTA]])*(ROUNDDOWN($B5,10)>=ROUNDDOWN(PopisPredavanja[VRIJEME POČETKA],10))*($B5<=PopisPredavanja[VRIJEME ZAVRŠETKA]),PopisPredavanja[JEDINSTVENO]),PopisPredavanja[JEDINSTVENO],0),2),0)","v":0}]
[null,"08:30:00",{"$f":"IFERROR(INDEX(PopisPredavanja[],MATCH(SUMPRODUCT((PopisPredavanja[DAN]=Raspored_sati[[#Headers],[NEDJELJA]])*(ROUNDDOWN($B6,10)>=ROUNDDOWN(PopisPredavanja[VRIJEME POČETKA],10))*($B6<=PopisPredavanja[VRIJEME ZAVRŠETKA]),PopisPredavanja[JEDINSTVENO]),PopisPredavanja[JEDINSTVENO],0),2),0)","v":0},{"$f":"IFERROR(INDEX(PopisPredavanja[],MATCH(SUMPRODUCT((PopisPredavanja[DAN]=Raspored_sati[[#Headers],[PONEDJELJAK]])*(ROUNDDOWN($B6,10)>=ROUNDDOWN(PopisPredavanja[VRIJEME POČETKA],10))*($B6<=PopisPredavanja[VRIJEME ZAVRŠETKA]),PopisPredavanja[JEDINSTVENO]),PopisPredavanja[JEDINSTVENO],0),2),0)","v":"MTH-113"},{"$f":"IFERROR(INDEX(PopisPredavanja[],MATCH(SUMPRODUCT((PopisPredavanja[DAN]=Raspored_sati[[#Headers],[UTORAK]])*(ROUNDDOWN($B6,10)>=ROUNDDOWN(PopisPredavanja[VRIJEME POČETKA],10))*($B6<=PopisPredavanja[VRIJEME ZAVRŠETKA]),PopisPredavanja[JEDINSTVENO]),PopisPredavanja[JEDINSTVENO],0),2),0)","v":0},{"$f":"IFERROR(INDEX(PopisPredavanja[],MATCH(SUMPRODUCT((PopisPredavanja[DAN]=Raspored_sati[[#Headers],[SRIJEDA]])*(ROUNDDOWN($B6,10)>=ROUNDDOWN(PopisPredavanja[VRIJEME POČETKA],10))*($B6<=PopisPredavanja[VRIJEME ZAVRŠETKA]),PopisPredavanja[JEDINSTVENO]),PopisPredavanja[JEDINSTVENO],0),2),0)","v":"MTH-113"},{"$f":"IFERROR(INDEX(PopisPredavanja[],MATCH(SUMPRODUCT((PopisPredavanja[DAN]=Raspored_sati[[#Headers],[ČETVRTAK]])*(ROUNDDOWN($B6,10)>=ROUNDDOWN(PopisPredavanja[VRIJEME POČETKA],10))*($B6<=PopisPredavanja[VRIJEME ZAVRŠETKA]),PopisPredavanja[JEDINSTVENO]),PopisPredavanja[JEDINSTVENO],0),2),0)","v":0},{"$f":"IFERROR(INDEX(PopisPredavanja[],MATCH(SUMPRODUCT((PopisPredavanja[DAN]=Raspored_sati[[#Headers],[PETAK]])*(ROUNDDOWN($B6,10)>=ROUNDDOWN(PopisPredavanja[VRIJEME POČETKA],10))*($B6<=PopisPredavanja[VRIJEME ZAVRŠETKA]),PopisPredavanja[JEDINSTVENO]),PopisPredavanja[JEDINSTVENO],0),2),0)","v":"MTH-113"},{"$f":"IFERROR(INDEX(PopisPredavanja[],MATCH(SUMPRODUCT((PopisPredavanja[DAN]=Raspored_sati[[#Headers],[SUBOTA]])*(ROUNDDOWN($B6,10)>=ROUNDDOWN(PopisPredavanja[VRIJEME POČETKA],10))*($B6<=PopisPredavanja[VRIJEME ZAVRŠETKA]),PopisPredavanja[JEDINSTVENO]),PopisPredavanja[JEDINSTVENO],0),2),0)","v":0}]
[null,"08:45:00",{"$f":"IFERROR(INDEX(PopisPredavanja[],MATCH(SUMPRODUCT((PopisPredavanja[DAN]=Raspored_sati[[#Headers],[NEDJELJA]])*(ROUNDDOWN($B7,10)>=ROUNDDOWN(PopisPredavanja[VRIJEME POČETKA],10))*($B7<=PopisPredavanja[VRIJEME ZAVRŠETKA]),PopisPredavanja[JEDINSTVENO]),PopisPredavanja[JEDINSTVENO],0),2),0)","v":0},{"$f":"IFERROR(INDEX(PopisPredavanja[],MATCH(SUMPRODUCT((PopisPredavanja[DAN]=Raspored_sati[[#Headers],[PONEDJELJAK]])*(ROUNDDOWN($B7,10)>=ROUNDDOWN(PopisPredavanja[VRIJEME POČETKA],10))*($B7<=PopisPredavanja[VRIJEME ZAVRŠETKA]),PopisPredavanja[JEDINSTVENO]),PopisPredavanja[JEDINSTVENO],0),2),0)","v":"MTH-113"},{"$f":"IFERROR(INDEX(PopisPredavanja[],MATCH(SUMPRODUCT((PopisPredavanja[DAN]=Raspored_sati[[#Headers],[UTORAK]])*(ROUNDDOWN($B7,10)>=ROUNDDOWN(PopisPredavanja[VRIJEME POČETKA],10))*($B7<=PopisPredavanja[VRIJEME ZAVRŠETKA]),PopisPredavanja[JEDINSTVENO]),PopisPredavanja[JEDINSTVENO],0),2),0)","v":0},{"$f":"IFERROR(INDEX(PopisPredavanja[],MATCH(SUMPRODUCT((PopisPredavanja[DAN]=Raspored_sati[[#Headers],[SRIJEDA]])*(ROUNDDOWN($B7,10)>=ROUNDDOWN(PopisPredavanja[VRIJEME POČETKA],10))*($B7<=PopisPredavanja[VRIJEME ZAVRŠETKA]),PopisPredavanja[JEDINSTVENO]),PopisPredavanja[JEDINSTVENO],0),2),0)","v":"MTH-113"},{"$f":"IFERROR(INDEX(PopisPredavanja[],MATCH(SUMPRODUCT((PopisPredavanja[DAN]=Raspored_sati[[#Headers],[ČETVRTAK]])*(ROUNDDOWN($B7,10)>=ROUNDDOWN(PopisPredavanja[VRIJEME POČETKA],10))*($B7<=PopisPredavanja[VRIJEME ZAVRŠETKA]),PopisPredavanja[JEDINSTVENO]),PopisPredavanja[JEDINSTVENO],0),2),0)","v":0},{"$f":"IFERROR(INDEX(PopisPredavanja[],MATCH(SUMPRODUCT((PopisPredavanja[DAN]=Raspored_sati[[#Headers],[PETAK]])*(ROUNDDOWN($B7,10)>=ROUNDDOWN(PopisPredavanja[VRIJEME POČETKA],10))*($B7<=PopisPredavanja[VRIJEME ZAVRŠETKA]),PopisPredavanja[JEDINSTVENO]),PopisPredavanja[JEDINSTVENO],0),2),0)","v":"MTH-113"},{"$f":"IFERROR(INDEX(PopisPredavanja[],MATCH(SUMPRODUCT((PopisPredavanja[DAN]=Raspored_sati[[#Headers],[SUBOTA]])*(ROUNDDOWN($B7,10)>=ROUNDDOWN(PopisPredavanja[VRIJEME POČETKA],10))*($B7<=PopisPredavanja[VRIJEME ZAVRŠETKA]),PopisPredavanja[JEDINSTVENO]),PopisPredavanja[JEDINSTVENO],0),2),0)","v":0}]
[null,"09:00:00",{"$f":"IFERROR(INDEX(PopisPredavanja[],MATCH(SUMPRODUCT((PopisPredavanja[DAN]=Raspored_sati[[#Headers],[NEDJELJA]])*(ROUNDDOWN($B8,10)>=ROUNDDOWN(PopisPredavanja[VRIJEME POČETKA],10))*($B8<=PopisPredavanja[VRIJEME ZAVRŠETKA]),PopisPredavanja[JEDINSTVENO]),PopisPredavanja[JEDINSTVENO],0),2),0)","v":0},{"$f":"IFERROR(INDEX(PopisPredavanja[],MATCH(SUMPRODUCT((PopisPredavanja[DAN]=Raspored_sati[[#Headers],[PONEDJELJAK]])*(ROUNDDOWN($B8,10)>=ROUNDDOWN(PopisPredavanja[VRIJEME POČETKA],10))*($B8<=PopisPredavanja[VRIJEME ZAVRŠETKA]),PopisPredavanja[JEDINSTVENO]),PopisPredavanja[JEDINSTVENO],0),2),0)","v":"MTH-113"},{"$f":"IFERROR(INDEX(PopisPredavanja[],MATCH(SUMPRODUCT((PopisPredavanja[DAN]=Raspored_sati[[#Headers],[UTORAK]])*(ROUNDDOWN($B8,10)>=ROUNDDOWN(PopisPredavanja[VRIJEME POČETKA],10))*($B8<=PopisPredavanja[VRIJEME ZAVRŠETKA]),PopisPredavanja[JEDINSTVENO]),PopisPredavanja[JEDINSTVENO],0),2),0)","v":0},{"$f":"IFERROR(INDEX(PopisPredavanja[],MATCH(SUMPRODUCT((PopisPredavanja[DAN]=Raspored_sati[[#Headers],[SRIJEDA]])*(ROUNDDOWN($B8,10)>=ROUNDDOWN(PopisPredavanja[VRIJEME POČETKA],10))*($B8<=PopisPredavanja[VRIJEME ZAVRŠETKA]),PopisPredavanja[JEDINSTVENO]),PopisPredavanja[JEDINSTVENO],0),2),0)","v":"MTH-113"},{"$f":"IFERROR(INDEX(PopisPredavanja[],MATCH(SUMPRODUCT((PopisPredavanja[DAN]=Raspored_sati[[#Headers],[ČETVRTAK]])*(ROUNDDOWN($B8,10)>=ROUNDDOWN(PopisPredavanja[VRIJEME POČETKA],10))*($B8<=PopisPredavanja[VRIJEME ZAVRŠETKA]),PopisPredavanja[JEDINSTVENO]),PopisPredavanja[JEDINSTVENO],0),2),0)","v":0},{"$f":"IFERROR(INDEX(PopisPredavanja[],MATCH(SUMPRODUCT((PopisPredavanja[DAN]=Raspored_sati[[#Headers],[PETAK]])*(ROUNDDOWN($B8,10)>=ROUNDDOWN(PopisPredavanja[VRIJEME POČETKA],10))*($B8<=PopisPredavanja[VRIJEME ZAVRŠETKA]),PopisPredavanja[JEDINSTVENO]),PopisPredavanja[JEDINSTVENO],0),2),0)","v":"MTH-113"},{"$f":"IFERROR(INDEX(PopisPredavanja[],MATCH(SUMPRODUCT((PopisPredavanja[DAN]=Raspored_sati[[#Headers],[SUBOTA]])*(ROUNDDOWN($B8,10)>=ROUNDDOWN(PopisPredavanja[VRIJEME POČETKA],10))*($B8<=PopisPredavanja[VRIJEME ZAVRŠETKA]),PopisPredavanja[JEDINSTVENO]),PopisPredavanja[JEDINSTVENO],0),2),0)","v":0}]
[null,"09:15:00",{"$f":"IFERROR(INDEX(PopisPredavanja[],MATCH(SUMPRODUCT((PopisPredavanja[DAN]=Raspored_sati[[#Headers],[NEDJELJA]])*(ROUNDDOWN($B9,10)>=ROUNDDOWN(PopisPredavanja[VRIJEME POČETKA],10))*($B9<=PopisPredavanja[VRIJEME ZAVRŠETKA]),PopisPredavanja[JEDINSTVENO]),PopisPredavanja[JEDINSTVENO],0),2),0)","v":0},{"$f":"IFERROR(INDEX(PopisPredavanja[],MATCH(SUMPRODUCT((PopisPredavanja[DAN]=Raspored_sati[[#Headers],[PONEDJELJAK]])*(ROUNDDOWN($B9,10)>=ROUNDDOWN(PopisPredavanja[VRIJEME POČETKA],10))*($B9<=PopisPredavanja[VRIJEME ZAVRŠETKA]),PopisPredavanja[JEDINSTVENO]),PopisPredavanja[JEDINSTVENO],0),2),0)","v":"MTH-113"},{"$f":"IFERROR(INDEX(PopisPredavanja[],MATCH(SUMPRODUCT((PopisPredavanja[DAN]=Raspored_sati[[#Headers],[UTORAK]])*(ROUNDDOWN($B9,10)>=ROUNDDOWN(PopisPredavanja[VRIJEME POČETKA],10))*($B9<=PopisPredavanja[VRIJEME ZAVRŠETKA]),PopisPredavanja[JEDINSTVENO]),PopisPredavanja[JEDINSTVENO],0),2),0)","v":0},{"$f":"IFERROR(INDEX(PopisPredavanja[],MATCH(SUMPRODUCT((PopisPredavanja[DAN]=Raspored_sati[[#Headers],[SRIJEDA]])*(ROUNDDOWN($B9,10)>=ROUNDDOWN(PopisPredavanja[VRIJEME POČETKA],10))*($B9<=PopisPredavanja[VRIJEME ZAVRŠETKA]),PopisPredavanja[JEDINSTVENO]),PopisPredavanja[JEDINSTVENO],0),2),0)","v":"MTH-113"},{"$f":"IFERROR(INDEX(PopisPredavanja[],MATCH(SUMPRODUCT((PopisPredavanja[DAN]=Raspored_sati[[#Headers],[ČETVRTAK]])*(ROUNDDOWN($B9,10)>=ROUNDDOWN(PopisPredavanja[VRIJEME POČETKA],10))*($B9<=PopisPredavanja[VRIJEME ZAVRŠETKA]),PopisPredavanja[JEDINSTVENO]),PopisPredavanja[JEDINSTVENO],0),2),0)","v":0},{"$f":"IFERROR(INDEX(PopisPredavanja[],MATCH(SUMPRODUCT((PopisPredavanja[DAN]=Raspored_sati[[#Headers],[PETAK]])*(ROUNDDOWN($B9,10)>=ROUNDDOWN(PopisPredavanja[VRIJEME POČETKA],10))*($B9<=PopisPredavanja[VRIJEME ZAVRŠETKA]),PopisPredavanja[JEDINSTVENO]),PopisPredavanja[JEDINSTVENO],0),2),0)","v":"MTH-113"},{"$f":"IFERROR(INDEX(PopisPredavanja[],MATCH(SUMPRODUCT((PopisPredavanja[DAN]=Raspored_sati[[#Headers],[SUBOTA]])*(ROUNDDOWN($B9,10)>=ROUNDDOWN(PopisPredavanja[VRIJEME POČETKA],10))*($B9<=PopisPredavanja[VRIJEME ZAVRŠETKA]),PopisPredavanja[JEDINSTVENO]),PopisPredavanja[JEDINSTVENO],0),2),0)","v":0}]
[null,"09:30:00",{"$f":"IFERROR(INDEX(PopisPredavanja[],MATCH(SUMPRODUCT((PopisPredavanja[DAN]=Raspored_sati[[#Headers],[NEDJELJA]])*(ROUNDDOWN($B10,10)>=ROUNDDOWN(PopisPredavanja[VRIJEME POČETKA],10))*($B10<=PopisPredavanja[VRIJEME ZAVRŠETKA]),PopisPredavanja[JEDINSTVENO]),PopisPredavanja[JEDINSTVENO],0),2),0)","v":0},{"$f":"IFERROR(INDEX(PopisPredavanja[],MATCH(SUMPRODUCT((PopisPredavanja[DAN]=Raspored_sati[[#Headers],[PONEDJELJAK]])*(ROUNDDOWN($B10,10)>=ROUNDDOWN(PopisPredavanja[VRIJEME POČETKA],10))*($B10<=PopisPredavanja[VRIJEME ZAVRŠETKA]),PopisPredavanja[JEDINSTVENO]),PopisPredavanja[JEDINSTVENO],0),2),0)","v":0},{"$f":"IFERROR(INDEX(PopisPredavanja[],MATCH(SUMPRODUCT((PopisPredavanja[DAN]=Raspored_sati[[#Headers],[UTORAK]])*(ROUNDDOWN($B10,10)>=ROUNDDOWN(PopisPredavanja[VRIJEME POČETKA],10))*($B10<=PopisPredavanja[VRIJEME ZAVRŠETKA]),PopisPredavanja[JEDINSTVENO]),PopisPredavanja[JEDINSTVENO],0),2),0)","v":0},{"$f":"IFERROR(INDEX(PopisPredavanja[],MATCH(SUMPRODUCT((PopisPredavanja[DAN]=Raspored_sati[[#Headers],[SRIJEDA]])*(ROUNDDOWN($B10,10)>=ROUNDDOWN(PopisPredavanja[VRIJEME POČETKA],10))*($B10<=PopisPredavanja[VRIJEME ZAVRŠETKA]),PopisPredavanja[JEDINSTVENO]),PopisPredavanja[JEDINSTVENO],0),2),0)","v":0},{"$f":"IFERROR(INDEX(PopisPredavanja[],MATCH(SUMPRODUCT((PopisPredavanja[DAN]=Raspored_sati[[#Headers],[ČETVRTAK]])*(ROUNDDOWN($B10,10)>=ROUNDDOWN(PopisPredavanja[VRIJEME POČETKA],10))*($B10<=PopisPredavanja[VRIJEME ZAVRŠETKA]),PopisPredavanja[JEDINSTVENO]),PopisPredavanja[JEDINSTVENO],0),2),0)","v":0},{"$f":"IFERROR(INDEX(PopisPredavanja[],MATCH(SUMPRODUCT((PopisPredavanja[DAN]=Raspored_sati[[#Headers],[PETAK]])*(ROUNDDOWN($B10,10)>=ROUNDDOWN(PopisPredavanja[VRIJEME POČETKA],10))*($B10<=PopisPredavanja[VRIJEME ZAVRŠETKA]),PopisPredavanja[JEDINSTVENO]),PopisPredavanja[JEDINSTVENO],0),2),0)","v":0},{"$f":"IFERROR(INDEX(PopisPredavanja[],MATCH(SUMPRODUCT((PopisPredavanja[DAN]=Raspored_sati[[#Headers],[SUBOTA]])*(ROUNDDOWN($B10,10)>=ROUNDDOWN(PopisPredavanja[VRIJEME POČETKA],10))*($B10<=PopisPredavanja[VRIJEME ZAVRŠETKA]),PopisPredavanja[JEDINSTVENO]),PopisPredavanja[JEDINSTVENO],0),2),0)","v":0}]
[null,{"$f":"B10+Interval","v":"09:45:00"},{"$f":"IFERROR(INDEX(PopisPredavanja[],MATCH(SUMPRODUCT((PopisPredavanja[DAN]=Raspored_sati[[#Headers],[NEDJELJA]])*(ROUNDDOWN($B11,10)>=ROUNDDOWN(PopisPredavanja[VRIJEME POČETKA],10))*($B11<=PopisPredavanja[VRIJEME ZAVRŠETKA]),PopisPredavanja[JEDINSTVENO]),PopisPredavanja[JEDINSTVENO],0),2),0)","v":0},{"$f":"IFERROR(INDEX(PopisPredavanja[],MATCH(SUMPRODUCT((PopisPredavanja[DAN]=Raspored_sati[[#Headers],[PONEDJELJAK]])*(ROUNDDOWN($B11,10)>=ROUNDDOWN(PopisPredavanja[VRIJEME POČETKA],10))*($B11<=PopisPredavanja[VRIJEME ZAVRŠETKA]),PopisPredavanja[JEDINSTVENO]),PopisPredavanja[JEDINSTVENO],0),2),0)","v":0},{"$f":"IFERROR(INDEX(PopisPredavanja[],MATCH(SUMPRODUCT((PopisPredavanja[DAN]=Raspored_sati[[#Headers],[UTORAK]])*(ROUNDDOWN($B11,10)>=ROUNDDOWN(PopisPredavanja[VRIJEME POČETKA],10))*($B11<=PopisPredavanja[VRIJEME ZAVRŠETKA]),PopisPredavanja[JEDINSTVENO]),PopisPredavanja[JEDINSTVENO],0),2),0)","v":0},{"$f":"IFERROR(INDEX(PopisPredavanja[],MATCH(SUMPRODUCT((PopisPredavanja[DAN]=Raspored_sati[[#Headers],[SRIJEDA]])*(ROUNDDOWN($B11,10)>=ROUNDDOWN(PopisPredavanja[VRIJEME POČETKA],10))*($B11<=PopisPredavanja[VRIJEME ZAVRŠETKA]),PopisPredavanja[JEDINSTVENO]),PopisPredavanja[JEDINSTVENO],0),2),0)","v":0},{"$f":"IFERROR(INDEX(PopisPredavanja[],MATCH(SUMPRODUCT((PopisPredavanja[DAN]=Raspored_sati[[#Headers],[ČETVRTAK]])*(ROUNDDOWN($B11,10)>=ROUNDDOWN(PopisPredavanja[VRIJEME POČETKA],10))*($B11<=PopisPredavanja[VRIJEME ZAVRŠETKA]),PopisPredavanja[JEDINSTVENO]),PopisPredavanja[JEDINSTVENO],0),2),0)","v":0},{"$f":"IFERROR(INDEX(PopisPredavanja[],MATCH(SUMPRODUCT((PopisPredavanja[DAN]=Raspored_sati[[#Headers],[PETAK]])*(ROUNDDOWN($B11,10)>=ROUNDDOWN(PopisPredavanja[VRIJEME POČETKA],10))*($B11<=PopisPredavanja[VRIJEME ZAVRŠETKA]),PopisPredavanja[JEDINSTVENO]),PopisPredavanja[JEDINSTVENO],0),2),0)","v":0},{"$f":"IFERROR(INDEX(PopisPredavanja[],MATCH(SUMPRODUCT((PopisPredavanja[DAN]=Raspored_sati[[#Headers],[SUBOTA]])*(ROUNDDOWN($B11,10)>=ROUNDDOWN(PopisPredavanja[VRIJEME POČETKA],10))*($B11<=PopisPredavanja[VRIJEME ZAVRŠETKA]),PopisPredavanja[JEDINSTVENO]),PopisPredavanja[JEDINSTVENO],0),2),0)","v":0}]
[null,"10:00:00",{"$f":"IFERROR(INDEX(PopisPredavanja[],MATCH(SUMPRODUCT((PopisPredavanja[DAN]=Raspored_sati[[#Headers],[NEDJELJA]])*(ROUNDDOWN($B12,10)>=ROUNDDOWN(PopisPredavanja[VRIJEME POČETKA],10))*($B12<=PopisPredavanja[VRIJEME ZAVRŠETKA]),PopisPredavanja[JEDINSTVENO]),PopisPredavanja[JEDINSTVENO],0),2),0)","v":0},{"$f":"IFERROR(INDEX(PopisPredavanja[],MATCH(SUMPRODUCT((PopisPredavanja[DAN]=Raspored_sati[[#Headers],[PONEDJELJAK]])*(ROUNDDOWN($B12,10)>=ROUNDDOWN(PopisPredavanja[VRIJEME POČETKA],10))*($B12<=PopisPredavanja[VRIJEME ZAVRŠETKA]),PopisPredavanja[JEDINSTVENO]),PopisPredavanja[JEDINSTVENO],0),2),0)","v":0},{"$f":"IFERROR(INDEX(PopisPredavanja[],MATCH(SUMPRODUCT((PopisPredavanja[DAN]=Raspored_sati[[#Headers],[UTORAK]])*(ROUNDDOWN($B12,10)>=ROUNDDOWN(PopisPredavanja[VRIJEME POČETKA],10))*($B12<=PopisPredavanja[VRIJEME ZAVRŠETKA]),PopisPredavanja[JEDINSTVENO]),PopisPredavanja[JEDINSTVENO],0),2),0)","v":0},{"$f":"IFERROR(INDEX(PopisPredavanja[],MATCH(SUMPRODUCT((PopisPredavanja[DAN]=Raspored_sati[[#Headers],[SRIJEDA]])*(ROUNDDOWN($B12,10)>=ROUNDDOWN(PopisPredavanja[VRIJEME POČETKA],10))*($B12<=PopisPredavanja[VRIJEME ZAVRŠETKA]),PopisPredavanja[JEDINSTVENO]),PopisPredavanja[JEDINSTVENO],0),2),0)","v":0},{"$f":"IFERROR(INDEX(PopisPredavanja[],MATCH(SUMPRODUCT((PopisPredavanja[DAN]=Raspored_sati[[#Headers],[ČETVRTAK]])*(ROUNDDOWN($B12,10)>=ROUNDDOWN(PopisPredavanja[VRIJEME POČETKA],10))*($B12<=PopisPredavanja[VRIJEME ZAVRŠETKA]),PopisPredavanja[JEDINSTVENO]),PopisPredavanja[JEDINSTVENO],0),2),0)","v":0},{"$f":"IFERROR(INDEX(PopisPredavanja[],MATCH(SUMPRODUCT((PopisPredavanja[DAN]=Raspored_sati[[#Headers],[PETAK]])*(ROUNDDOWN($B12,10)>=ROUNDDOWN(PopisPredavanja[VRIJEME POČETKA],10))*($B12<=PopisPredavanja[VRIJEME ZAVRŠETKA]),PopisPredavanja[JEDINSTVENO]),PopisPredavanja[JEDINSTVENO],0),2),0)","v":0},{"$f":"IFERROR(INDEX(PopisPredavanja[],MATCH(SUMPRODUCT((PopisPredavanja[DAN]=Raspored_sati[[#Headers],[SUBOTA]])*(ROUNDDOWN($B12,10)>=ROUNDDOWN(PopisPredavanja[VRIJEME POČETKA],10))*($B12<=PopisPredavanja[VRIJEME ZAVRŠETKA]),PopisPredavanja[JEDINSTVENO]),PopisPredavanja[JEDINSTVENO],0),2),0)","v":0}]
[null,"10:15:00",{"$f":"IFERROR(INDEX(PopisPredavanja[],MATCH(SUMPRODUCT((PopisPredavanja[DAN]=Raspored_sati[[#Headers],[NEDJELJA]])*(ROUNDDOWN($B13,10)>=ROUNDDOWN(PopisPredavanja[VRIJEME POČETKA],10))*($B13<=PopisPredavanja[VRIJEME ZAVRŠETKA]),PopisPredavanja[JEDINSTVENO]),PopisPredavanja[JEDINSTVENO],0),2),0)","v":0},{"$f":"IFERROR(INDEX(PopisPredavanja[],MATCH(SUMPRODUCT((PopisPredavanja[DAN]=Raspored_sati[[#Headers],[PONEDJELJAK]])*(ROUNDDOWN($B13,10)>=ROUNDDOWN(PopisPredavanja[VRIJEME POČETKA],10))*($B13<=PopisPredavanja[VRIJEME ZAVRŠETKA]),PopisPredavanja[JEDINSTVENO]),PopisPredavanja[JEDINSTVENO],0),2),0)","v":0},{"$f":"IFERROR(INDEX(PopisPredavanja[],MATCH(SUMPRODUCT((PopisPredavanja[DAN]=Raspored_sati[[#Headers],[UTORAK]])*(ROUNDDOWN($B13,10)>=ROUNDDOWN(PopisPredavanja[VRIJEME POČETKA],10))*($B13<=PopisPredavanja[VRIJEME ZAVRŠETKA]),PopisPredavanja[JEDINSTVENO]),PopisPredavanja[JEDINSTVENO],0),2),0)","v":0},{"$f":"IFERROR(INDEX(PopisPredavanja[],MATCH(SUMPRODUCT((PopisPredavanja[DAN]=Raspored_sati[[#Headers],[SRIJEDA]])*(ROUNDDOWN($B13,10)>=ROUNDDOWN(PopisPredavanja[VRIJEME POČETKA],10))*($B13<=PopisPredavanja[VRIJEME ZAVRŠETKA]),PopisPredavanja[JEDINSTVENO]),PopisPredavanja[JEDINSTVENO],0),2),0)","v":0},{"$f":"IFERROR(INDEX(PopisPredavanja[],MATCH(SUMPRODUCT((PopisPredavanja[DAN]=Raspored_sati[[#Headers],[ČETVRTAK]])*(ROUNDDOWN($B13,10)>=ROUNDDOWN(PopisPredavanja[VRIJEME POČETKA],10))*($B13<=PopisPredavanja[VRIJEME ZAVRŠETKA]),PopisPredavanja[JEDINSTVENO]),PopisPredavanja[JEDINSTVENO],0),2),0)","v":0},{"$f":"IFERROR(INDEX(PopisPredavanja[],MATCH(SUMPRODUCT((PopisPredavanja[DAN]=Raspored_sati[[#Headers],[PETAK]])*(ROUNDDOWN($B13,10)>=ROUNDDOWN(PopisPredavanja[VRIJEME POČETKA],10))*($B13<=PopisPredavanja[VRIJEME ZAVRŠETKA]),PopisPredavanja[JEDINSTVENO]),PopisPredavanja[JEDINSTVENO],0),2),0)","v":0},{"$f":"IFERROR(INDEX(PopisPredavanja[],MATCH(SUMPRODUCT((PopisPredavanja[DAN]=Raspored_sati[[#Headers],[SUBOTA]])*(ROUNDDOWN($B13,10)>=ROUNDDOWN(PopisPredavanja[VRIJEME POČETKA],10))*($B13<=PopisPredavanja[VRIJEME ZAVRŠETKA]),PopisPredavanja[JEDINSTVENO]),PopisPredavanja[JEDINSTVENO],0),2),0)","v":0}]
[null,"10:30:00",{"$f":"IFERROR(INDEX(PopisPredavanja[],MATCH(SUMPRODUCT((PopisPredavanja[DAN]=Raspored_sati[[#Headers],[NEDJELJA]])*(ROUNDDOWN($B14,10)>=ROUNDDOWN(PopisPredavanja[VRIJEME POČETKA],10))*($B14<=PopisPredavanja[VRIJEME ZAVRŠETKA]),PopisPredavanja[JEDINSTVENO]),PopisPredavanja[JEDINSTVENO],0),2),0)","v":0},{"$f":"IFERROR(INDEX(PopisPredavanja[],MATCH(SUMPRODUCT((PopisPredavanja[DAN]=Raspored_sati[[#Headers],[PONEDJELJAK]])*(ROUNDDOWN($B14,10)>=ROUNDDOWN(PopisPredavanja[VRIJEME POČETKA],10))*($B14<=PopisPredavanja[VRIJEME ZAVRŠETKA]),PopisPredavanja[JEDINSTVENO]),PopisPredavanja[JEDINSTVENO],0),2),0)","v":0},{"$f":"IFERROR(INDEX(PopisPredavanja[],MATCH(SUMPRODUCT((PopisPredavanja[DAN]=Raspored_sati[[#Headers],[UTORAK]])*(ROUNDDOWN($B14,10)>=ROUNDDOWN(PopisPredavanja[VRIJEME POČETKA],10))*($B14<=PopisPredavanja[VRIJEME ZAVRŠETKA]),PopisPredavanja[JEDINSTVENO]),PopisPredavanja[JEDINSTVENO],0),2),0)","v":0},{"$f":"IFERROR(INDEX(PopisPredavanja[],MATCH(SUMPRODUCT((PopisPredavanja[DAN]=Raspored_sati[[#Headers],[SRIJEDA]])*(ROUNDDOWN($B14,10)>=ROUNDDOWN(PopisPredavanja[VRIJEME POČETKA],10))*($B14<=PopisPredavanja[VRIJEME ZAVRŠETKA]),PopisPredavanja[JEDINSTVENO]),PopisPredavanja[JEDINSTVENO],0),2),0)","v":0},{"$f":"IFERROR(INDEX(PopisPredavanja[],MATCH(SUMPRODUCT((PopisPredavanja[DAN]=Raspored_sati[[#Headers],[ČETVRTAK]])*(ROUNDDOWN($B14,10)>=ROUNDDOWN(PopisPredavanja[VRIJEME POČETKA],10))*($B14<=PopisPredavanja[VRIJEME ZAVRŠETKA]),PopisPredavanja[JEDINSTVENO]),PopisPredavanja[JEDINSTVENO],0),2),0)","v":0},{"$f":"IFERROR(INDEX(PopisPredavanja[],MATCH(SUMPRODUCT((PopisPredavanja[DAN]=Raspored_sati[[#Headers],[PETAK]])*(ROUNDDOWN($B14,10)>=ROUNDDOWN(PopisPredavanja[VRIJEME POČETKA],10))*($B14<=PopisPredavanja[VRIJEME ZAVRŠETKA]),PopisPredavanja[JEDINSTVENO]),PopisPredavanja[JEDINSTVENO],0),2),0)","v":0},{"$f":"IFERROR(INDEX(PopisPredavanja[],MATCH(SUMPRODUCT((PopisPredavanja[DAN]=Raspored_sati[[#Headers],[SUBOTA]])*(ROUNDDOWN($B14,10)>=ROUNDDOWN(PopisPredavanja[VRIJEME POČETKA],10))*($B14<=PopisPredavanja[VRIJEME ZAVRŠETKA]),PopisPredavanja[JEDINSTVENO]),PopisPredavanja[JEDINSTVENO],0),2),0)","v":0}]
[null,"10:45:00",{"$f":"IFERROR(INDEX(PopisPredavanja[],MATCH(SUMPRODUCT((PopisPredavanja[DAN]=Raspored_sati[[#Headers],[NEDJELJA]])*(ROUNDDOWN($B15,10)>=ROUNDDOWN(PopisPredavanja[VRIJEME POČETKA],10))*($B15<=PopisPredavanja[VRIJEME ZAVRŠETKA]),PopisPredavanja[JEDINSTVENO]),PopisPredavanja[JEDINSTVENO],0),2),0)","v":0},{"$f":"IFERROR(INDEX(PopisPredavanja[],MATCH(SUMPRODUCT((PopisPredavanja[DAN]=Raspored_sati[[#Headers],[PONEDJELJAK]])*(ROUNDDOWN($B15,10)>=ROUNDDOWN(PopisPredavanja[VRIJEME POČETKA],10))*($B15<=PopisPredavanja[VRIJEME ZAVRŠETKA]),PopisPredavanja[JEDINSTVENO]),PopisPredavanja[JEDINSTVENO],0),2),0)","v":0},{"$f":"IFERROR(INDEX(PopisPredavanja[],MATCH(SUMPRODUCT((PopisPredavanja[DAN]=Raspored_sati[[#Headers],[UTORAK]])*(ROUNDDOWN($B15,10)>=ROUNDDOWN(PopisPredavanja[VRIJEME POČETKA],10))*($B15<=PopisPredavanja[VRIJEME ZAVRŠETKA]),PopisPredavanja[JEDINSTVENO]),PopisPredavanja[JEDINSTVENO],0),2),0)","v":0},{"$f":"IFERROR(INDEX(PopisPredavanja[],MATCH(SUMPRODUCT((PopisPredavanja[DAN]=Raspored_sati[[#Headers],[SRIJEDA]])*(ROUNDDOWN($B15,10)>=ROUNDDOWN(PopisPredavanja[VRIJEME POČETKA],10))*($B15<=PopisPredavanja[VRIJEME ZAVRŠETKA]),PopisPredavanja[JEDINSTVENO]),PopisPredavanja[JEDINSTVENO],0),2),0)","v":0},{"$f":"IFERROR(INDEX(PopisPredavanja[],MATCH(SUMPRODUCT((PopisPredavanja[DAN]=Raspored_sati[[#Headers],[ČETVRTAK]])*(ROUNDDOWN($B15,10)>=ROUNDDOWN(PopisPredavanja[VRIJEME POČETKA],10))*($B15<=PopisPredavanja[VRIJEME ZAVRŠETKA]),PopisPredavanja[JEDINSTVENO]),PopisPredavanja[JEDINSTVENO],0),2),0)","v":0},{"$f":"IFERROR(INDEX(PopisPredavanja[],MATCH(SUMPRODUCT((PopisPredavanja[DAN]=Raspored_sati[[#Headers],[PETAK]])*(ROUNDDOWN($B15,10)>=ROUNDDOWN(PopisPredavanja[VRIJEME POČETKA],10))*($B15<=PopisPredavanja[VRIJEME ZAVRŠETKA]),PopisPredavanja[JEDINSTVENO]),PopisPredavanja[JEDINSTVENO],0),2),0)","v":0},{"$f":"IFERROR(INDEX(PopisPredavanja[],MATCH(SUMPRODUCT((PopisPredavanja[DAN]=Raspored_sati[[#Headers],[SUBOTA]])*(ROUNDDOWN($B15,10)>=ROUNDDOWN(PopisPredavanja[VRIJEME POČETKA],10))*($B15<=PopisPredavanja[VRIJEME ZAVRŠETKA]),PopisPredavanja[JEDINSTVENO]),PopisPredavanja[JEDINSTVENO],0),2),0)","v":0}]
[null,"11:00:00",{"$f":"IFERROR(INDEX(PopisPredavanja[],MATCH(SUMPRODUCT((PopisPredavanja[DAN]=Raspored_sati[[#Headers],[NEDJELJA]])*(ROUNDDOWN($B16,10)>=ROUNDDOWN(PopisPredavanja[VRIJEME POČETKA],10))*($B16<=PopisPredavanja[VRIJEME ZAVRŠETKA]),PopisPredavanja[JEDINSTVENO]),PopisPredavanja[JEDINSTVENO],0),2),0)","v":0},{"$f":"IFERROR(INDEX(PopisPredavanja[],MATCH(SUMPRODUCT((PopisPredavanja[DAN]=Raspored_sati[[#Headers],[PONEDJELJAK]])*(ROUNDDOWN($B16,10)>=ROUNDDOWN(PopisPredavanja[VRIJEME POČETKA],10))*($B16<=PopisPredavanja[VRIJEME ZAVRŠETKA]),PopisPredavanja[JEDINSTVENO]),PopisPredavanja[JEDINSTVENO],0),2),0)","v":0},{"$f":"IFERROR(INDEX(PopisPredavanja[],MATCH(SUMPRODUCT((PopisPredavanja[DAN]=Raspored_sati[[#Headers],[UTORAK]])*(ROUNDDOWN($B16,10)>=ROUNDDOWN(PopisPredavanja[VRIJEME POČETKA],10))*($B16<=PopisPredavanja[VRIJEME ZAVRŠETKA]),PopisPredavanja[JEDINSTVENO]),PopisPredavanja[JEDINSTVENO],0),2),0)","v":"HPE-295"},{"$f":"IFERROR(INDEX(PopisPredavanja[],MATCH(SUMPRODUCT((PopisPredavanja[DAN]=Raspored_sati[[#Headers],[SRIJEDA]])*(ROUNDDOWN($B16,10)>=ROUNDDOWN(PopisPredavanja[VRIJEME POČETKA],10))*($B16<=PopisPredavanja[VRIJEME ZAVRŠETKA]),PopisPredavanja[JEDINSTVENO]),PopisPredavanja[JEDINSTVENO],0),2),0)","v":0},{"$f":"IFERROR(INDEX(PopisPredavanja[],MATCH(SUMPRODUCT((PopisPredavanja[DAN]=Raspored_sati[[#Headers],[ČETVRTAK]])*(ROUNDDOWN($B16,10)>=ROUNDDOWN(PopisPredavanja[VRIJEME POČETKA],10))*($B16<=PopisPredavanja[VRIJEME ZAVRŠETKA]),PopisPredavanja[JEDINSTVENO]),PopisPredavanja[JEDINSTVENO],0),2),0)","v":"HPE-295"},{"$f":"IFERROR(INDEX(PopisPredavanja[],MATCH(SUMPRODUCT((PopisPredavanja[DAN]=Raspored_sati[[#Headers],[PETAK]])*(ROUNDDOWN($B16,10)>=ROUNDDOWN(PopisPredavanja[VRIJEME POČETKA],10))*($B16<=PopisPredavanja[VRIJEME ZAVRŠETKA]),PopisPredavanja[JEDINSTVENO]),PopisPredavanja[JEDINSTVENO],0),2),0)","v":0},{"$f":"IFERROR(INDEX(PopisPredavanja[],MATCH(SUMPRODUCT((PopisPredavanja[DAN]=Raspored_sati[[#Headers],[SUBOTA]])*(ROUNDDOWN($B16,10)>=ROUNDDOWN(PopisPredavanja[VRIJEME POČETKA],10))*($B16<=PopisPredavanja[VRIJEME ZAVRŠETKA]),PopisPredavanja[JEDINSTVENO]),PopisPredavanja[JEDINSTVENO],0),2),0)","v":0}]
[null,"11:15:00",{"$f":"IFERROR(INDEX(PopisPredavanja[],MATCH(SUMPRODUCT((PopisPredavanja[DAN]=Raspored_sati[[#Headers],[NEDJELJA]])*(ROUNDDOWN($B17,10)>=ROUNDDOWN(PopisPredavanja[VRIJEME POČETKA],10))*($B17<=PopisPredavanja[VRIJEME ZAVRŠETKA]),PopisPredavanja[JEDINSTVENO]),PopisPredavanja[JEDINSTVENO],0),2),0)","v":0},{"$f":"IFERROR(INDEX(PopisPredavanja[],MATCH(SUMPRODUCT((PopisPredavanja[DAN]=Raspored_sati[[#Headers],[PONEDJELJAK]])*(ROUNDDOWN($B17,10)>=ROUNDDOWN(PopisPredavanja[VRIJEME POČETKA],10))*($B17<=PopisPredavanja[VRIJEME ZAVRŠETKA]),PopisPredavanja[JEDINSTVENO]),PopisPredavanja[JEDINSTVENO],0),2),0)","v":0},{"$f":"IFERROR(INDEX(PopisPredavanja[],MATCH(SUMPRODUCT((PopisPredavanja[DAN]=Raspored_sati[[#Headers],[UTORAK]])*(ROUNDDOWN($B17,10)>=ROUNDDOWN(PopisPredavanja[VRIJEME POČETKA],10))*($B17<=PopisPredavanja[VRIJEME ZAVRŠETKA]),PopisPredavanja[JEDINSTVENO]),PopisPredavanja[JEDINSTVENO],0),2),0)","v":"HPE-295"},{"$f":"IFERROR(INDEX(PopisPredavanja[],MATCH(SUMPRODUCT((PopisPredavanja[DAN]=Raspored_sati[[#Headers],[SRIJEDA]])*(ROUNDDOWN($B17,10)>=ROUNDDOWN(PopisPredavanja[VRIJEME POČETKA],10))*($B17<=PopisPredavanja[VRIJEME ZAVRŠETKA]),PopisPredavanja[JEDINSTVENO]),PopisPredavanja[JEDINSTVENO],0),2),0)","v":0},{"$f":"IFERROR(INDEX(PopisPredavanja[],MATCH(SUMPRODUCT((PopisPredavanja[DAN]=Raspored_sati[[#Headers],[ČETVRTAK]])*(ROUNDDOWN($B17,10)>=ROUNDDOWN(PopisPredavanja[VRIJEME POČETKA],10))*($B17<=PopisPredavanja[VRIJEME ZAVRŠETKA]),PopisPredavanja[JEDINSTVENO]),PopisPredavanja[JEDINSTVENO],0),2),0)","v":"HPE-295"},{"$f":"IFERROR(INDEX(PopisPredavanja[],MATCH(SUMPRODUCT((PopisPredavanja[DAN]=Raspored_sati[[#Headers],[PETAK]])*(ROUNDDOWN($B17,10)>=ROUNDDOWN(PopisPredavanja[VRIJEME POČETKA],10))*($B17<=PopisPredavanja[VRIJEME ZAVRŠETKA]),PopisPredavanja[JEDINSTVENO]),PopisPredavanja[JEDINSTVENO],0),2),0)","v":0},{"$f":"IFERROR(INDEX(PopisPredavanja[],MATCH(SUMPRODUCT((PopisPredavanja[DAN]=Raspored_sati[[#Headers],[SUBOTA]])*(ROUNDDOWN($B17,10)>=ROUNDDOWN(PopisPredavanja[VRIJEME POČETKA],10))*($B17<=PopisPredavanja[VRIJEME ZAVRŠETKA]),PopisPredavanja[JEDINSTVENO]),PopisPredavanja[JEDINSTVENO],0),2),0)","v":0}]
[null,"11:30:00",{"$f":"IFERROR(INDEX(PopisPredavanja[],MATCH(SUMPRODUCT((PopisPredavanja[DAN]=Raspored_sati[[#Headers],[NEDJELJA]])*(ROUNDDOWN($B18,10)>=ROUNDDOWN(PopisPredavanja[VRIJEME POČETKA],10))*($B18<=PopisPredavanja[VRIJEME ZAVRŠETKA]),PopisPredavanja[JEDINSTVENO]),PopisPredavanja[JEDINSTVENO],0),2),0)","v":0},{"$f":"IFERROR(INDEX(PopisPredavanja[],MATCH(SUMPRODUCT((PopisPredavanja[DAN]=Raspored_sati[[#Headers],[PONEDJELJAK]])*(ROUNDDOWN($B18,10)>=ROUNDDOWN(PopisPredavanja[VRIJEME POČETKA],10))*($B18<=PopisPredavanja[VRIJEME ZAVRŠETKA]),PopisPredavanja[JEDINSTVENO]),PopisPredavanja[JEDINSTVENO],0),2),0)","v":0},{"$f":"IFERROR(INDEX(PopisPredavanja[],MATCH(SUMPRODUCT((PopisPredavanja[DAN]=Raspored_sati[[#Headers],[UTORAK]])*(ROUNDDOWN($B18,10)>=ROUNDDOWN(PopisPredavanja[VRIJEME POČETKA],10))*($B18<=PopisPredavanja[VRIJEME ZAVRŠETKA]),PopisPredavanja[JEDINSTVENO]),PopisPredavanja[JEDINSTVENO],0),2),0)","v":"HPE-295"},{"$f":"IFERROR(INDEX(PopisPredavanja[],MATCH(SUMPRODUCT((PopisPredavanja[DAN]=Raspored_sati[[#Headers],[SRIJEDA]])*(ROUNDDOWN($B18,10)>=ROUNDDOWN(PopisPredavanja[VRIJEME POČETKA],10))*($B18<=PopisPredavanja[VRIJEME ZAVRŠETKA]),PopisPredavanja[JEDINSTVENO]),PopisPredavanja[JEDINSTVENO],0),2),0)","v":0},{"$f":"IFERROR(INDEX(PopisPredavanja[],MATCH(SUMPRODUCT((PopisPredavanja[DAN]=Raspored_sati[[#Headers],[ČETVRTAK]])*(ROUNDDOWN($B18,10)>=ROUNDDOWN(PopisPredavanja[VRIJEME POČETKA],10))*($B18<=PopisPredavanja[VRIJEME ZAVRŠETKA]),PopisPredavanja[JEDINSTVENO]),PopisPredavanja[JEDINSTVENO],0),2),0)","v":"HPE-295"},{"$f":"IFERROR(INDEX(PopisPredavanja[],MATCH(SUMPRODUCT((PopisPredavanja[DAN]=Raspored_sati[[#Headers],[PETAK]])*(ROUNDDOWN($B18,10)>=ROUNDDOWN(PopisPredavanja[VRIJEME POČETKA],10))*($B18<=PopisPredavanja[VRIJEME ZAVRŠETKA]),PopisPredavanja[JEDINSTVENO]),PopisPredavanja[JEDINSTVENO],0),2),0)","v":0},{"$f":"IFERROR(INDEX(PopisPredavanja[],MATCH(SUMPRODUCT((PopisPredavanja[DAN]=Raspored_sati[[#Headers],[SUBOTA]])*(ROUNDDOWN($B18,10)>=ROUNDDOWN(PopisPredavanja[VRIJEME POČETKA],10))*($B18<=PopisPredavanja[VRIJEME ZAVRŠETKA]),PopisPredavanja[JEDINSTVENO]),PopisPredavanja[JEDINSTVENO],0),2),0)","v":0}]
[null,"11:45:00",{"$f":"IFERROR(INDEX(PopisPredavanja[],MATCH(SUMPRODUCT((PopisPredavanja[DAN]=Raspored_sati[[#Headers],[NEDJELJA]])*(ROUNDDOWN($B19,10)>=ROUNDDOWN(PopisPredavanja[VRIJEME POČETKA],10))*($B19<=PopisPredavanja[VRIJEME ZAVRŠETKA]),PopisPredavanja[JEDINSTVENO]),PopisPredavanja[JEDINSTVENO],0),2),0)","v":0},{"$f":"IFERROR(INDEX(PopisPredavanja[],MATCH(SUMPRODUCT((PopisPredavanja[DAN]=Raspored_sati[[#Headers],[PONEDJELJAK]])*(ROUNDDOWN($B19,10)>=ROUNDDOWN(PopisPredavanja[VRIJEME POČETKA],10))*($B19<=PopisPredavanja[VRIJEME ZAVRŠETKA]),PopisPredavanja[JEDINSTVENO]),PopisPredavanja[JEDINSTVENO],0),2),0)","v":0},{"$f":"IFERROR(INDEX(PopisPredavanja[],MATCH(SUMPRODUCT((PopisPredavanja[DAN]=Raspored_sati[[#Headers],[UTORAK]])*(ROUNDDOWN($B19,10)>=ROUNDDOWN(PopisPredavanja[VRIJEME POČETKA],10))*($B19<=PopisPredavanja[VRIJEME ZAVRŠETKA]),PopisPredavanja[JEDINSTVENO]),PopisPredavanja[JEDINSTVENO],0),2),0)","v":"HPE-295"},{"$f":"IFERROR(INDEX(PopisPredavanja[],MATCH(SUMPRODUCT((PopisPredavanja[DAN]=Raspored_sati[[#Headers],[SRIJEDA]])*(ROUNDDOWN($B19,10)>=ROUNDDOWN(PopisPredavanja[VRIJEME POČETKA],10))*($B19<=PopisPredavanja[VRIJEME ZAVRŠETKA]),PopisPredavanja[JEDINSTVENO]),PopisPredavanja[JEDINSTVENO],0),2),0)","v":0},{"$f":"IFERROR(INDEX(PopisPredavanja[],MATCH(SUMPRODUCT((PopisPredavanja[DAN]=Raspored_sati[[#Headers],[ČETVRTAK]])*(ROUNDDOWN($B19,10)>=ROUNDDOWN(PopisPredavanja[VRIJEME POČETKA],10))*($B19<=PopisPredavanja[VRIJEME ZAVRŠETKA]),PopisPredavanja[JEDINSTVENO]),PopisPredavanja[JEDINSTVENO],0),2),0)","v":"HPE-295"},{"$f":"IFERROR(INDEX(PopisPredavanja[],MATCH(SUMPRODUCT((PopisPredavanja[DAN]=Raspored_sati[[#Headers],[PETAK]])*(ROUNDDOWN($B19,10)>=ROUNDDOWN(PopisPredavanja[VRIJEME POČETKA],10))*($B19<=PopisPredavanja[VRIJEME ZAVRŠETKA]),PopisPredavanja[JEDINSTVENO]),PopisPredavanja[JEDINSTVENO],0),2),0)","v":0},{"$f":"IFERROR(INDEX(PopisPredavanja[],MATCH(SUMPRODUCT((PopisPredavanja[DAN]=Raspored_sati[[#Headers],[SUBOTA]])*(ROUNDDOWN($B19,10)>=ROUNDDOWN(PopisPredavanja[VRIJEME POČETKA],10))*($B19<=PopisPredavanja[VRIJEME ZAVRŠETKA]),PopisPredavanja[JEDINSTVENO]),PopisPredavanja[JEDINSTVENO],0),2),0)","v":0}]
[null,"12:00:00",{"$f":"IFERROR(INDEX(PopisPredavanja[],MATCH(SUMPRODUCT((PopisPredavanja[DAN]=Raspored_sati[[#Headers],[NEDJELJA]])*(ROUNDDOWN($B20,10)>=ROUNDDOWN(PopisPredavanja[VRIJEME POČETKA],10))*($B20<=PopisPredavanja[VRIJEME ZAVRŠETKA]),PopisPredavanja[JEDINSTVENO]),PopisPredavanja[JEDINSTVENO],0),2),0)","v":0},{"$f":"IFERROR(INDEX(PopisPredavanja[],MATCH(SUMPRODUCT((PopisPredavanja[DAN]=Raspored_sati[[#Headers],[PONEDJELJAK]])*(ROUNDDOWN($B20,10)>=ROUNDDOWN(PopisPredavanja[VRIJEME POČETKA],10))*($B20<=PopisPredavanja[VRIJEME ZAVRŠETKA]),PopisPredavanja[JEDINSTVENO]),PopisPredavanja[JEDINSTVENO],0),2),0)","v":0},{"$f":"IFERROR(INDEX(PopisPredavanja[],MATCH(SUMPRODUCT((PopisPredavanja[DAN]=Raspored_sati[[#Headers],[UTORAK]])*(ROUNDDOWN($B20,10)>=ROUNDDOWN(PopisPredavanja[VRIJEME POČETKA],10))*($B20<=PopisPredavanja[VRIJEME ZAVRŠETKA]),PopisPredavanja[JEDINSTVENO]),PopisPredavanja[JEDINSTVENO],0),2),0)","v":"HPE-295"},{"$f":"IFERROR(INDEX(PopisPredavanja[],MATCH(SUMPRODUCT((PopisPredavanja[DAN]=Raspored_sati[[#Headers],[SRIJEDA]])*(ROUNDDOWN($B20,10)>=ROUNDDOWN(PopisPredavanja[VRIJEME POČETKA],10))*($B20<=PopisPredavanja[VRIJEME ZAVRŠETKA]),PopisPredavanja[JEDINSTVENO]),PopisPredavanja[JEDINSTVENO],0),2),0)","v":0},{"$f":"IFERROR(INDEX(PopisPredavanja[],MATCH(SUMPRODUCT((PopisPredavanja[DAN]=Raspored_sati[[#Headers],[ČETVRTAK]])*(ROUNDDOWN($B20,10)>=ROUNDDOWN(PopisPredavanja[VRIJEME POČETKA],10))*($B20<=PopisPredavanja[VRIJEME ZAVRŠETKA]),PopisPredavanja[JEDINSTVENO]),PopisPredavanja[JEDINSTVENO],0),2),0)","v":"HPE-295"},{"$f":"IFERROR(INDEX(PopisPredavanja[],MATCH(SUMPRODUCT((PopisPredavanja[DAN]=Raspored_sati[[#Headers],[PETAK]])*(ROUNDDOWN($B20,10)>=ROUNDDOWN(PopisPredavanja[VRIJEME POČETKA],10))*($B20<=PopisPredavanja[VRIJEME ZAVRŠETKA]),PopisPredavanja[JEDINSTVENO]),PopisPredavanja[JEDINSTVENO],0),2),0)","v":0},{"$f":"IFERROR(INDEX(PopisPredavanja[],MATCH(SUMPRODUCT((PopisPredavanja[DAN]=Raspored_sati[[#Headers],[SUBOTA]])*(ROUNDDOWN($B20,10)>=ROUNDDOWN(PopisPredavanja[VRIJEME POČETKA],10))*($B20<=PopisPredavanja[VRIJEME ZAVRŠETKA]),PopisPredavanja[JEDINSTVENO]),PopisPredavanja[JEDINSTVENO],0),2),0)","v":0}]
[null,"12:15:00",{"$f":"IFERROR(INDEX(PopisPredavanja[],MATCH(SUMPRODUCT((PopisPredavanja[DAN]=Raspored_sati[[#Headers],[NEDJELJA]])*(ROUNDDOWN($B21,10)>=ROUNDDOWN(PopisPredavanja[VRIJEME POČETKA],10))*($B21<=PopisPredavanja[VRIJEME ZAVRŠETKA]),PopisPredavanja[JEDINSTVENO]),PopisPredavanja[JEDINSTVENO],0),2),0)","v":0},{"$f":"IFERROR(INDEX(PopisPredavanja[],MATCH(SUMPRODUCT((PopisPredavanja[DAN]=Raspored_sati[[#Headers],[PONEDJELJAK]])*(ROUNDDOWN($B21,10)>=ROUNDDOWN(PopisPredavanja[VRIJEME POČETKA],10))*($B21<=PopisPredavanja[VRIJEME ZAVRŠETKA]),PopisPredavanja[JEDINSTVENO]),PopisPredavanja[JEDINSTVENO],0),2),0)","v":0},{"$f":"IFERROR(INDEX(PopisPredavanja[],MATCH(SUMPRODUCT((PopisPredavanja[DAN]=Raspored_sati[[#Headers],[UTORAK]])*(ROUNDDOWN($B21,10)>=ROUNDDOWN(PopisPredavanja[VRIJEME POČETKA],10))*($B21<=PopisPredavanja[VRIJEME ZAVRŠETKA]),PopisPredavanja[JEDINSTVENO]),PopisPredavanja[JEDINSTVENO],0),2),0)","v":0},{"$f":"IFERROR(INDEX(PopisPredavanja[],MATCH(SUMPRODUCT((PopisPredavanja[DAN]=Raspored_sati[[#Headers],[SRIJEDA]])*(ROUNDDOWN($B21,10)>=ROUNDDOWN(PopisPredavanja[VRIJEME POČETKA],10))*($B21<=PopisPredavanja[VRIJEME ZAVRŠETKA]),PopisPredavanja[JEDINSTVENO]),PopisPredavanja[JEDINSTVENO],0),2),0)","v":0},{"$f":"IFERROR(INDEX(PopisPredavanja[],MATCH(SUMPRODUCT((PopisPredavanja[DAN]=Raspored_sati[[#Headers],[ČETVRTAK]])*(ROUNDDOWN($B21,10)>=ROUNDDOWN(PopisPredavanja[VRIJEME POČETKA],10))*($B21<=PopisPredavanja[VRIJEME ZAVRŠETKA]),PopisPredavanja[JEDINSTVENO]),PopisPredavanja[JEDINSTVENO],0),2),0)","v":0},{"$f":"IFERROR(INDEX(PopisPredavanja[],MATCH(SUMPRODUCT((PopisPredavanja[DAN]=Raspored_sati[[#Headers],[PETAK]])*(ROUNDDOWN($B21,10)>=ROUNDDOWN(PopisPredavanja[VRIJEME POČETKA],10))*($B21<=PopisPredavanja[VRIJEME ZAVRŠETKA]),PopisPredavanja[JEDINSTVENO]),PopisPredavanja[JEDINSTVENO],0),2),0)","v":0},{"$f":"IFERROR(INDEX(PopisPredavanja[],MATCH(SUMPRODUCT((PopisPredavanja[DAN]=Raspored_sati[[#Headers],[SUBOTA]])*(ROUNDDOWN($B21,10)>=ROUNDDOWN(PopisPredavanja[VRIJEME POČETKA],10))*($B21<=PopisPredavanja[VRIJEME ZAVRŠETKA]),PopisPredavanja[JEDINSTVENO]),PopisPredavanja[JEDINSTVENO],0),2),0)","v":0}]
[null,"12:30:00",{"$f":"IFERROR(INDEX(PopisPredavanja[],MATCH(SUMPRODUCT((PopisPredavanja[DAN]=Raspored_sati[[#Headers],[NEDJELJA]])*(ROUNDDOWN($B22,10)>=ROUNDDOWN(PopisPredavanja[VRIJEME POČETKA],10))*($B22<=PopisPredavanja[VRIJEME ZAVRŠETKA]),PopisPredavanja[JEDINSTVENO]),PopisPredavanja[JEDINSTVENO],0),2),0)","v":0},{"$f":"IFERROR(INDEX(PopisPredavanja[],MATCH(SUMPRODUCT((PopisPredavanja[DAN]=Raspored_sati[[#Headers],[PONEDJELJAK]])*(ROUNDDOWN($B22,10)>=ROUNDDOWN(PopisPredavanja[VRIJEME POČETKA],10))*($B22<=PopisPredavanja[VRIJEME ZAVRŠETKA]),PopisPredavanja[JEDINSTVENO]),PopisPredavanja[JEDINSTVENO],0),2),0)","v":0},{"$f":"IFERROR(INDEX(PopisPredavanja[],MATCH(SUMPRODUCT((PopisPredavanja[DAN]=Raspored_sati[[#Headers],[UTORAK]])*(ROUNDDOWN($B22,10)>=ROUNDDOWN(PopisPredavanja[VRIJEME POČETKA],10))*($B22<=PopisPredavanja[VRIJEME ZAVRŠETKA]),PopisPredavanja[JEDINSTVENO]),PopisPredavanja[JEDINSTVENO],0),2),0)","v":0},{"$f":"IFERROR(INDEX(PopisPredavanja[],MATCH(SUMPRODUCT((PopisPredavanja[DAN]=Raspored_sati[[#Headers],[SRIJEDA]])*(ROUNDDOWN($B22,10)>=ROUNDDOWN(PopisPredavanja[VRIJEME POČETKA],10))*($B22<=PopisPredavanja[VRIJEME ZAVRŠETKA]),PopisPredavanja[JEDINSTVENO]),PopisPredavanja[JEDINSTVENO],0),2),0)","v":0},{"$f":"IFERROR(INDEX(PopisPredavanja[],MATCH(SUMPRODUCT((PopisPredavanja[DAN]=Raspored_sati[[#Headers],[ČETVRTAK]])*(ROUNDDOWN($B22,10)>=ROUNDDOWN(PopisPredavanja[VRIJEME POČETKA],10))*($B22<=PopisPredavanja[VRIJEME ZAVRŠETKA]),PopisPredavanja[JEDINSTVENO]),PopisPredavanja[JEDINSTVENO],0),2),0)","v":0},{"$f":"IFERROR(INDEX(PopisPredavanja[],MATCH(SUMPRODUCT((PopisPredavanja[DAN]=Raspored_sati[[#Headers],[PETAK]])*(ROUNDDOWN($B22,10)>=ROUNDDOWN(PopisPredavanja[VRIJEME POČETKA],10))*($B22<=PopisPredavanja[VRIJEME ZAVRŠETKA]),PopisPredavanja[JEDINSTVENO]),PopisPredavanja[JEDINSTVENO],0),2),0)","v":0},{"$f":"IFERROR(INDEX(PopisPredavanja[],MATCH(SUMPRODUCT((PopisPredavanja[DAN]=Raspored_sati[[#Headers],[SUBOTA]])*(ROUNDDOWN($B22,10)>=ROUNDDOWN(PopisPredavanja[VRIJEME POČETKA],10))*($B22<=PopisPredavanja[VRIJEME ZAVRŠETKA]),PopisPredavanja[JEDINSTVENO]),PopisPredavanja[JEDINSTVENO],0),2),0)","v":0}]
[null,"12:45:00",{"$f":"IFERROR(INDEX(PopisPredavanja[],MATCH(SUMPRODUCT((PopisPredavanja[DAN]=Raspored_sati[[#Headers],[NEDJELJA]])*(ROUNDDOWN($B23,10)>=ROUNDDOWN(PopisPredavanja[VRIJEME POČETKA],10))*($B23<=PopisPredavanja[VRIJEME ZAVRŠETKA]),PopisPredavanja[JEDINSTVENO]),PopisPredavanja[JEDINSTVENO],0),2),0)","v":0},{"$f":"IFERROR(INDEX(PopisPredavanja[],MATCH(SUMPRODUCT((PopisPredavanja[DAN]=Raspored_sati[[#Headers],[PONEDJELJAK]])*(ROUNDDOWN($B23,10)>=ROUNDDOWN(PopisPredavanja[VRIJEME POČETKA],10))*($B23<=PopisPredavanja[VRIJEME ZAVRŠETKA]),PopisPredavanja[JEDINSTVENO]),PopisPredavanja[JEDINSTVENO],0),2),0)","v":0},{"$f":"IFERROR(INDEX(PopisPredavanja[],MATCH(SUMPRODUCT((PopisPredavanja[DAN]=Raspored_sati[[#Headers],[UTORAK]])*(ROUNDDOWN($B23,10)>=ROUNDDOWN(PopisPredavanja[VRIJEME POČETKA],10))*($B23<=PopisPredavanja[VRIJEME ZAVRŠETKA]),PopisPredavanja[JEDINSTVENO]),PopisPredavanja[JEDINSTVENO],0),2),0)","v":0},{"$f":"IFERROR(INDEX(PopisPredavanja[],MATCH(SUMPRODUCT((PopisPredavanja[DAN]=Raspored_sati[[#Headers],[SRIJEDA]])*(ROUNDDOWN($B23,10)>=ROUNDDOWN(PopisPredavanja[VRIJEME POČETKA],10))*($B23<=PopisPredavanja[VRIJEME ZAVRŠETKA]),PopisPredavanja[JEDINSTVENO]),PopisPredavanja[JEDINSTVENO],0),2),0)","v":0},{"$f":"IFERROR(INDEX(PopisPredavanja[],MATCH(SUMPRODUCT((PopisPredavanja[DAN]=Raspored_sati[[#Headers],[ČETVRTAK]])*(ROUNDDOWN($B23,10)>=ROUNDDOWN(PopisPredavanja[VRIJEME POČETKA],10))*($B23<=PopisPredavanja[VRIJEME ZAVRŠETKA]),PopisPredavanja[JEDINSTVENO]),PopisPredavanja[JEDINSTVENO],0),2),0)","v":0},{"$f":"IFERROR(INDEX(PopisPredavanja[],MATCH(SUMPRODUCT((PopisPredavanja[DAN]=Raspored_sati[[#Headers],[PETAK]])*(ROUNDDOWN($B23,10)>=ROUNDDOWN(PopisPredavanja[VRIJEME POČETKA],10))*($B23<=PopisPredavanja[VRIJEME ZAVRŠETKA]),PopisPredavanja[JEDINSTVENO]),PopisPredavanja[JEDINSTVENO],0),2),0)","v":0},{"$f":"IFERROR(INDEX(PopisPredavanja[],MATCH(SUMPRODUCT((PopisPredavanja[DAN]=Raspored_sati[[#Headers],[SUBOTA]])*(ROUNDDOWN($B23,10)>=ROUNDDOWN(PopisPredavanja[VRIJEME POČETKA],10))*($B23<=PopisPredavanja[VRIJEME ZAVRŠETKA]),PopisPredavanja[JEDINSTVENO]),PopisPredavanja[JEDINSTVENO],0),2),0)","v":0}]
[null,"13:00:00",{"$f":"IFERROR(INDEX(PopisPredavanja[],MATCH(SUMPRODUCT((PopisPredavanja[DAN]=Raspored_sati[[#Headers],[NEDJELJA]])*(ROUNDDOWN($B24,10)>=ROUNDDOWN(PopisPredavanja[VRIJEME POČETKA],10))*($B24<=PopisPredavanja[VRIJEME ZAVRŠETKA]),PopisPredavanja[JEDINSTVENO]),PopisPredavanja[JEDINSTVENO],0),2),0)","v":0},{"$f":"IFERROR(INDEX(PopisPredavanja[],MATCH(SUMPRODUCT((PopisPredavanja[DAN]=Raspored_sati[[#Headers],[PONEDJELJAK]])*(ROUNDDOWN($B24,10)>=ROUNDDOWN(PopisPredavanja[VRIJEME POČETKA],10))*($B24<=PopisPredavanja[VRIJEME ZAVRŠETKA]),PopisPredavanja[JEDINSTVENO]),PopisPredavanja[JEDINSTVENO],0),2),0)","v":"WR-121"},{"$f":"IFERROR(INDEX(PopisPredavanja[],MATCH(SUMPRODUCT((PopisPredavanja[DAN]=Raspored_sati[[#Headers],[UTORAK]])*(ROUNDDOWN($B24,10)>=ROUNDDOWN(PopisPredavanja[VRIJEME POČETKA],10))*($B24<=PopisPredavanja[VRIJEME ZAVRŠETKA]),PopisPredavanja[JEDINSTVENO]),PopisPredavanja[JEDINSTVENO],0),2),0)","v":0},{"$f":"IFERROR(INDEX(PopisPredavanja[],MATCH(SUMPRODUCT((PopisPredavanja[DAN]=Raspored_sati[[#Headers],[SRIJEDA]])*(ROUNDDOWN($B24,10)>=ROUNDDOWN(PopisPredavanja[VRIJEME POČETKA],10))*($B24<=PopisPredavanja[VRIJEME ZAVRŠETKA]),PopisPredavanja[JEDINSTVENO]),PopisPredavanja[JEDINSTVENO],0),2),0)","v":"WR-121"},{"$f":"IFERROR(INDEX(PopisPredavanja[],MATCH(SUMPRODUCT((PopisPredavanja[DAN]=Raspored_sati[[#Headers],[ČETVRTAK]])*(ROUNDDOWN($B24,10)>=ROUNDDOWN(PopisPredavanja[VRIJEME POČETKA],10))*($B24<=PopisPredavanja[VRIJEME ZAVRŠETKA]),PopisPredavanja[JEDINSTVENO]),PopisPredavanja[JEDINSTVENO],0),2),0)","v":0},{"$f":"IFERROR(INDEX(PopisPredavanja[],MATCH(SUMPRODUCT((PopisPredavanja[DAN]=Raspored_sati[[#Headers],[PETAK]])*(ROUNDDOWN($B24,10)>=ROUNDDOWN(PopisPredavanja[VRIJEME POČETKA],10))*($B24<=PopisPredavanja[VRIJEME ZAVRŠETKA]),PopisPredavanja[JEDINSTVENO]),PopisPredavanja[JEDINSTVENO],0),2),0)","v":0},{"$f":"IFERROR(INDEX(PopisPredavanja[],MATCH(SUMPRODUCT((PopisPredavanja[DAN]=Raspored_sati[[#Headers],[SUBOTA]])*(ROUNDDOWN($B24,10)>=ROUNDDOWN(PopisPredavanja[VRIJEME POČETKA],10))*($B24<=PopisPredavanja[VRIJEME ZAVRŠETKA]),PopisPredavanja[JEDINSTVENO]),PopisPredavanja[JEDINSTVENO],0),2),0)","v":0}]
[null,"13:15:00",{"$f":"IFERROR(INDEX(PopisPredavanja[],MATCH(SUMPRODUCT((PopisPredavanja[DAN]=Raspored_sati[[#Headers],[NEDJELJA]])*(ROUNDDOWN($B25,10)>=ROUNDDOWN(PopisPredavanja[VRIJEME POČETKA],10))*($B25<=PopisPredavanja[VRIJEME ZAVRŠETKA]),PopisPredavanja[JEDINSTVENO]),PopisPredavanja[JEDINSTVENO],0),2),0)","v":0},{"$f":"IFERROR(INDEX(PopisPredavanja[],MATCH(SUMPRODUCT((PopisPredavanja[DAN]=Raspored_sati[[#Headers],[PONEDJELJAK]])*(ROUNDDOWN($B25,10)>=ROUNDDOWN(PopisPredavanja[VRIJEME POČETKA],10))*($B25<=PopisPredavanja[VRIJEME ZAVRŠETKA]),PopisPredavanja[JEDINSTVENO]),PopisPredavanja[JEDINSTVENO],0),2),0)","v":"WR-121"},{"$f":"IFERROR(INDEX(PopisPredavanja[],MATCH(SUMPRODUCT((PopisPredavanja[DAN]=Raspored_sati[[#Headers],[UTORAK]])*(ROUNDDOWN($B25,10)>=ROUNDDOWN(PopisPredavanja[VRIJEME POČETKA],10))*($B25<=PopisPredavanja[VRIJEME ZAVRŠETKA]),PopisPredavanja[JEDINSTVENO]),PopisPredavanja[JEDINSTVENO],0),2),0)","v":0},{"$f":"IFERROR(INDEX(PopisPredavanja[],MATCH(SUMPRODUCT((PopisPredavanja[DAN]=Raspored_sati[[#Headers],[SRIJEDA]])*(ROUNDDOWN($B25,10)>=ROUNDDOWN(PopisPredavanja[VRIJEME POČETKA],10))*($B25<=PopisPredavanja[VRIJEME ZAVRŠETKA]),PopisPredavanja[JEDINSTVENO]),PopisPredavanja[JEDINSTVENO],0),2),0)","v":"WR-121"},{"$f":"IFERROR(INDEX(PopisPredavanja[],MATCH(SUMPRODUCT((PopisPredavanja[DAN]=Raspored_sati[[#Headers],[ČETVRTAK]])*(ROUNDDOWN($B25,10)>=ROUNDDOWN(PopisPredavanja[VRIJEME POČETKA],10))*($B25<=PopisPredavanja[VRIJEME ZAVRŠETKA]),PopisPredavanja[JEDINSTVENO]),PopisPredavanja[JEDINSTVENO],0),2),0)","v":0},{"$f":"IFERROR(INDEX(PopisPredavanja[],MATCH(SUMPRODUCT((PopisPredavanja[DAN]=Raspored_sati[[#Headers],[PETAK]])*(ROUNDDOWN($B25,10)>=ROUNDDOWN(PopisPredavanja[VRIJEME POČETKA],10))*($B25<=PopisPredavanja[VRIJEME ZAVRŠETKA]),PopisPredavanja[JEDINSTVENO]),PopisPredavanja[JEDINSTVENO],0),2),0)","v":0},{"$f":"IFERROR(INDEX(PopisPredavanja[],MATCH(SUMPRODUCT((PopisPredavanja[DAN]=Raspored_sati[[#Headers],[SUBOTA]])*(ROUNDDOWN($B25,10)>=ROUNDDOWN(PopisPredavanja[VRIJEME POČETKA],10))*($B25<=PopisPredavanja[VRIJEME ZAVRŠETKA]),PopisPredavanja[JEDINSTVENO]),PopisPredavanja[JEDINSTVENO],0),2),0)","v":0}]
[null,"13:30:00",{"$f":"IFERROR(INDEX(PopisPredavanja[],MATCH(SUMPRODUCT((PopisPredavanja[DAN]=Raspored_sati[[#Headers],[NEDJELJA]])*(ROUNDDOWN($B26,10)>=ROUNDDOWN(PopisPredavanja[VRIJEME POČETKA],10))*($B26<=PopisPredavanja[VRIJEME ZAVRŠETKA]),PopisPredavanja[JEDINSTVENO]),PopisPredavanja[JEDINSTVENO],0),2),0)","v":0},{"$f":"IFERROR(INDEX(PopisPredavanja[],MATCH(SUMPRODUCT((PopisPredavanja[DAN]=Raspored_sati[[#Headers],[PONEDJELJAK]])*(ROUNDDOWN($B26,10)>=ROUNDDOWN(PopisPredavanja[VRIJEME POČETKA],10))*($B26<=PopisPredavanja[VRIJEME ZAVRŠETKA]),PopisPredavanja[JEDINSTVENO]),PopisPredavanja[JEDINSTVENO],0),2),0)","v":"WR-121"},{"$f":"IFERROR(INDEX(PopisPredavanja[],MATCH(SUMPRODUCT((PopisPredavanja[DAN]=Raspored_sati[[#Headers],[UTORAK]])*(ROUNDDOWN($B26,10)>=ROUNDDOWN(PopisPredavanja[VRIJEME POČETKA],10))*($B26<=PopisPredavanja[VRIJEME ZAVRŠETKA]),PopisPredavanja[JEDINSTVENO]),PopisPredavanja[JEDINSTVENO],0),2),0)","v":0},{"$f":"IFERROR(INDEX(PopisPredavanja[],MATCH(SUMPRODUCT((PopisPredavanja[DAN]=Raspored_sati[[#Headers],[SRIJEDA]])*(ROUNDDOWN($B26,10)>=ROUNDDOWN(PopisPredavanja[VRIJEME POČETKA],10))*($B26<=PopisPredavanja[VRIJEME ZAVRŠETKA]),PopisPredavanja[JEDINSTVENO]),PopisPredavanja[JEDINSTVENO],0),2),0)","v":"WR-121"},{"$f":"IFERROR(INDEX(PopisPredavanja[],MATCH(SUMPRODUCT((PopisPredavanja[DAN]=Raspored_sati[[#Headers],[ČETVRTAK]])*(ROUNDDOWN($B26,10)>=ROUNDDOWN(PopisPredavanja[VRIJEME POČETKA],10))*($B26<=PopisPredavanja[VRIJEME ZAVRŠETKA]),PopisPredavanja[JEDINSTVENO]),PopisPredavanja[JEDINSTVENO],0),2),0)","v":0},{"$f":"IFERROR(INDEX(PopisPredavanja[],MATCH(SUMPRODUCT((PopisPredavanja[DAN]=Raspored_sati[[#Headers],[PETAK]])*(ROUNDDOWN($B26,10)>=ROUNDDOWN(PopisPredavanja[VRIJEME POČETKA],10))*($B26<=PopisPredavanja[VRIJEME ZAVRŠETKA]),PopisPredavanja[JEDINSTVENO]),PopisPredavanja[JEDINSTVENO],0),2),0)","v":0},{"$f":"IFERROR(INDEX(PopisPredavanja[],MATCH(SUMPRODUCT((PopisPredavanja[DAN]=Raspored_sati[[#Headers],[SUBOTA]])*(ROUNDDOWN($B26,10)>=ROUNDDOWN(PopisPredavanja[VRIJEME POČETKA],10))*($B26<=PopisPredavanja[VRIJEME ZAVRŠETKA]),PopisPredavanja[JEDINSTVENO]),PopisPredavanja[JEDINSTVENO],0),2),0)","v":0}]
[null,"13:45:00",{"$f":"IFERROR(INDEX(PopisPredavanja[],MATCH(SUMPRODUCT((PopisPredavanja[DAN]=Raspored_sati[[#Headers],[NEDJELJA]])*(ROUNDDOWN($B27,10)>=ROUNDDOWN(PopisPredavanja[VRIJEME POČETKA],10))*($B27<=PopisPredavanja[VRIJEME ZAVRŠETKA]),PopisPredavanja[JEDINSTVENO]),PopisPredavanja[JEDINSTVENO],0),2),0)","v":0},{"$f":"IFERROR(INDEX(PopisPredavanja[],MATCH(SUMPRODUCT((PopisPredavanja[DAN]=Raspored_sati[[#Headers],[PONEDJELJAK]])*(ROUNDDOWN($B27,10)>=ROUNDDOWN(PopisPredavanja[VRIJEME POČETKA],10))*($B27<=PopisPredavanja[VRIJEME ZAVRŠETKA]),PopisPredavanja[JEDINSTVENO]),PopisPredavanja[JEDINSTVENO],0),2),0)","v":"WR-121"},{"$f":"IFERROR(INDEX(PopisPredavanja[],MATCH(SUMPRODUCT((PopisPredavanja[DAN]=Raspored_sati[[#Headers],[UTORAK]])*(ROUNDDOWN($B27,10)>=ROUNDDOWN(PopisPredavanja[VRIJEME POČETKA],10))*($B27<=PopisPredavanja[VRIJEME ZAVRŠETKA]),PopisPredavanja[JEDINSTVENO]),PopisPredavanja[JEDINSTVENO],0),2),0)","v":0},{"$f":"IFERROR(INDEX(PopisPredavanja[],MATCH(SUMPRODUCT((PopisPredavanja[DAN]=Raspored_sati[[#Headers],[SRIJEDA]])*(ROUNDDOWN($B27,10)>=ROUNDDOWN(PopisPredavanja[VRIJEME POČETKA],10))*($B27<=PopisPredavanja[VRIJEME ZAVRŠETKA]),PopisPredavanja[JEDINSTVENO]),PopisPredavanja[JEDINSTVENO],0),2),0)","v":"WR-121"},{"$f":"IFERROR(INDEX(PopisPredavanja[],MATCH(SUMPRODUCT((PopisPredavanja[DAN]=Raspored_sati[[#Headers],[ČETVRTAK]])*(ROUNDDOWN($B27,10)>=ROUNDDOWN(PopisPredavanja[VRIJEME POČETKA],10))*($B27<=PopisPredavanja[VRIJEME ZAVRŠETKA]),PopisPredavanja[JEDINSTVENO]),PopisPredavanja[JEDINSTVENO],0),2),0)","v":0},{"$f":"IFERROR(INDEX(PopisPredavanja[],MATCH(SUMPRODUCT((PopisPredavanja[DAN]=Raspored_sati[[#Headers],[PETAK]])*(ROUNDDOWN($B27,10)>=ROUNDDOWN(PopisPredavanja[VRIJEME POČETKA],10))*($B27<=PopisPredavanja[VRIJEME ZAVRŠETKA]),PopisPredavanja[JEDINSTVENO]),PopisPredavanja[JEDINSTVENO],0),2),0)","v":0},{"$f":"IFERROR(INDEX(PopisPredavanja[],MATCH(SUMPRODUCT((PopisPredavanja[DAN]=Raspored_sati[[#Headers],[SUBOTA]])*(ROUNDDOWN($B27,10)>=ROUNDDOWN(PopisPredavanja[VRIJEME POČETKA],10))*($B27<=PopisPredavanja[VRIJEME ZAVRŠETKA]),PopisPredavanja[JEDINSTVENO]),PopisPredavanja[JEDINSTVENO],0),2),0)","v":0}]
[null,"14:00:00",{"$f":"IFERROR(INDEX(PopisPredavanja[],MATCH(SUMPRODUCT((PopisPredavanja[DAN]=Raspored_sati[[#Headers],[NEDJELJA]])*(ROUNDDOWN($B28,10)>=ROUNDDOWN(PopisPredavanja[VRIJEME POČETKA],10))*($B28<=PopisPredavanja[VRIJEME ZAVRŠETKA]),PopisPredavanja[JEDINSTVENO]),PopisPredavanja[JEDINSTVENO],0),2),0)","v":0},{"$f":"IFERROR(INDEX(PopisPredavanja[],MATCH(SUMPRODUCT((PopisPredavanja[DAN]=Raspored_sati[[#Headers],[PONEDJELJAK]])*(ROUNDDOWN($B28,10)>=ROUNDDOWN(PopisPredavanja[VRIJEME POČETKA],10))*($B28<=PopisPredavanja[VRIJEME ZAVRŠETKA]),PopisPredavanja[JEDINSTVENO]),PopisPredavanja[JEDINSTVENO],0),2),0)","v":"WR-121"},{"$f":"IFERROR(INDEX(PopisPredavanja[],MATCH(SUMPRODUCT((PopisPredavanja[DAN]=Raspored_sati[[#Headers],[UTORAK]])*(ROUNDDOWN($B28,10)>=ROUNDDOWN(PopisPredavanja[VRIJEME POČETKA],10))*($B28<=PopisPredavanja[VRIJEME ZAVRŠETKA]),PopisPredavanja[JEDINSTVENO]),PopisPredavanja[JEDINSTVENO],0),2),0)","v":0},{"$f":"IFERROR(INDEX(PopisPredavanja[],MATCH(SUMPRODUCT((PopisPredavanja[DAN]=Raspored_sati[[#Headers],[SRIJEDA]])*(ROUNDDOWN($B28,10)>=ROUNDDOWN(PopisPredavanja[VRIJEME POČETKA],10))*($B28<=PopisPredavanja[VRIJEME ZAVRŠETKA]),PopisPredavanja[JEDINSTVENO]),PopisPredavanja[JEDINSTVENO],0),2),0)","v":"WR-121"},{"$f":"IFERROR(INDEX(PopisPredavanja[],MATCH(SUMPRODUCT((PopisPredavanja[DAN]=Raspored_sati[[#Headers],[ČETVRTAK]])*(ROUNDDOWN($B28,10)>=ROUNDDOWN(PopisPredavanja[VRIJEME POČETKA],10))*($B28<=PopisPredavanja[VRIJEME ZAVRŠETKA]),PopisPredavanja[JEDINSTVENO]),PopisPredavanja[JEDINSTVENO],0),2),0)","v":0},{"$f":"IFERROR(INDEX(PopisPredavanja[],MATCH(SUMPRODUCT((PopisPredavanja[DAN]=Raspored_sati[[#Headers],[PETAK]])*(ROUNDDOWN($B28,10)>=ROUNDDOWN(PopisPredavanja[VRIJEME POČETKA],10))*($B28<=PopisPredavanja[VRIJEME ZAVRŠETKA]),PopisPredavanja[JEDINSTVENO]),PopisPredavanja[JEDINSTVENO],0),2),0)","v":0},{"$f":"IFERROR(INDEX(PopisPredavanja[],MATCH(SUMPRODUCT((PopisPredavanja[DAN]=Raspored_sati[[#Headers],[SUBOTA]])*(ROUNDDOWN($B28,10)>=ROUNDDOWN(PopisPredavanja[VRIJEME POČETKA],10))*($B28<=PopisPredavanja[VRIJEME ZAVRŠETKA]),PopisPredavanja[JEDINSTVENO]),PopisPredavanja[JEDINSTVENO],0),2),0)","v":0}]
[null,"14:15:00",{"$f":"IFERROR(INDEX(PopisPredavanja[],MATCH(SUMPRODUCT((PopisPredavanja[DAN]=Raspored_sati[[#Headers],[NEDJELJA]])*(ROUNDDOWN($B29,10)>=ROUNDDOWN(PopisPredavanja[VRIJEME POČETKA],10))*($B29<=PopisPredavanja[VRIJEME ZAVRŠETKA]),PopisPredavanja[JEDINSTVENO]),PopisPredavanja[JEDINSTVENO],0),2),0)","v":0},{"$f":"IFERROR(INDEX(PopisPredavanja[],MATCH(SUMPRODUCT((PopisPredavanja[DAN]=Raspored_sati[[#Headers],[PONEDJELJAK]])*(ROUNDDOWN($B29,10)>=ROUNDDOWN(PopisPredavanja[VRIJEME POČETKA],10))*($B29<=PopisPredavanja[VRIJEME ZAVRŠETKA]),PopisPredavanja[JEDINSTVENO]),PopisPredavanja[JEDINSTVENO],0),2),0)","v":0},{"$f":"IFERROR(INDEX(PopisPredavanja[],MATCH(SUMPRODUCT((PopisPredavanja[DAN]=Raspored_sati[[#Headers],[UTORAK]])*(ROUNDDOWN($B29,10)>=ROUNDDOWN(PopisPredavanja[VRIJEME POČETKA],10))*($B29<=PopisPredavanja[VRIJEME ZAVRŠETKA]),PopisPredavanja[JEDINSTVENO]),PopisPredavanja[JEDINSTVENO],0),2),0)","v":0},{"$f":"IFERROR(INDEX(PopisPredavanja[],MATCH(SUMPRODUCT((PopisPredavanja[DAN]=Raspored_sati[[#Headers],[SRIJEDA]])*(ROUNDDOWN($B29,10)>=ROUNDDOWN(PopisPredavanja[VRIJEME POČETKA],10))*($B29<=PopisPredavanja[VRIJEME ZAVRŠETKA]),PopisPredavanja[JEDINSTVENO]),PopisPredavanja[JEDINSTVENO],0),2),0)","v":0},{"$f":"IFERROR(INDEX(PopisPredavanja[],MATCH(SUMPRODUCT((PopisPredavanja[DAN]=Raspored_sati[[#Headers],[ČETVRTAK]])*(ROUNDDOWN($B29,10)>=ROUNDDOWN(PopisPredavanja[VRIJEME POČETKA],10))*($B29<=PopisPredavanja[VRIJEME ZAVRŠETKA]),PopisPredavanja[JEDINSTVENO]),PopisPredavanja[JEDINSTVENO],0),2),0)","v":0},{"$f":"IFERROR(INDEX(PopisPredavanja[],MATCH(SUMPRODUCT((PopisPredavanja[DAN]=Raspored_sati[[#Headers],[PETAK]])*(ROUNDDOWN($B29,10)>=ROUNDDOWN(PopisPredavanja[VRIJEME POČETKA],10))*($B29<=PopisPredavanja[VRIJEME ZAVRŠETKA]),PopisPredavanja[JEDINSTVENO]),PopisPredavanja[JEDINSTVENO],0),2),0)","v":0},{"$f":"IFERROR(INDEX(PopisPredavanja[],MATCH(SUMPRODUCT((PopisPredavanja[DAN]=Raspored_sati[[#Headers],[SUBOTA]])*(ROUNDDOWN($B29,10)>=ROUNDDOWN(PopisPredavanja[VRIJEME POČETKA],10))*($B29<=PopisPredavanja[VRIJEME ZAVRŠETKA]),PopisPredavanja[JEDINSTVENO]),PopisPredavanja[JEDINSTVENO],0),2),0)","v":0}]
[null,"14:30:00",{"$f":"IFERROR(INDEX(PopisPredavanja[],MATCH(SUMPRODUCT((PopisPredavanja[DAN]=Raspored_sati[[#Headers],[NEDJELJA]])*(ROUNDDOWN($B30,10)>=ROUNDDOWN(PopisPredavanja[VRIJEME POČETKA],10))*($B30<=PopisPredavanja[VRIJEME ZAVRŠETKA]),PopisPredavanja[JEDINSTVENO]),PopisPredavanja[JEDINSTVENO],0),2),0)","v":0},{"$f":"IFERROR(INDEX(PopisPredavanja[],MATCH(SUMPRODUCT((PopisPredavanja[DAN]=Raspored_sati[[#Headers],[PONEDJELJAK]])*(ROUNDDOWN($B30,10)>=ROUNDDOWN(PopisPredavanja[VRIJEME POČETKA],10))*($B30<=PopisPredavanja[VRIJEME ZAVRŠETKA]),PopisPredavanja[JEDINSTVENO]),PopisPredavanja[JEDINSTVENO],0),2),0)","v":0},{"$f":"IFERROR(INDEX(PopisPredavanja[],MATCH(SUMPRODUCT((PopisPredavanja[DAN]=Raspored_sati[[#Headers],[UTORAK]])*(ROUNDDOWN($B30,10)>=ROUNDDOWN(PopisPredavanja[VRIJEME POČETKA],10))*($B30<=PopisPredavanja[VRIJEME ZAVRŠETKA]),PopisPredavanja[JEDINSTVENO]),PopisPredavanja[JEDINSTVENO],0),2),0)","v":0},{"$f":"IFERROR(INDEX(PopisPredavanja[],MATCH(SUMPRODUCT((PopisPredavanja[DAN]=Raspored_sati[[#Headers],[SRIJEDA]])*(ROUNDDOWN($B30,10)>=ROUNDDOWN(PopisPredavanja[VRIJEME POČETKA],10))*($B30<=PopisPredavanja[VRIJEME ZAVRŠETKA]),PopisPredavanja[JEDINSTVENO]),PopisPredavanja[JEDINSTVENO],0),2),0)","v":0},{"$f":"IFERROR(INDEX(PopisPredavanja[],MATCH(SUMPRODUCT((PopisPredavanja[DAN]=Raspored_sati[[#Headers],[ČETVRTAK]])*(ROUNDDOWN($B30,10)>=ROUNDDOWN(PopisPredavanja[VRIJEME POČETKA],10))*($B30<=PopisPredavanja[VRIJEME ZAVRŠETKA]),PopisPredavanja[JEDINSTVENO]),PopisPredavanja[JEDINSTVENO],0),2),0)","v":0},{"$f":"IFERROR(INDEX(PopisPredavanja[],MATCH(SUMPRODUCT((PopisPredavanja[DAN]=Raspored_sati[[#Headers],[PETAK]])*(ROUNDDOWN($B30,10)>=ROUNDDOWN(PopisPredavanja[VRIJEME POČETKA],10))*($B30<=PopisPredavanja[VRIJEME ZAVRŠETKA]),PopisPredavanja[JEDINSTVENO]),PopisPredavanja[JEDINSTVENO],0),2),0)","v":0},{"$f":"IFERROR(INDEX(PopisPredavanja[],MATCH(SUMPRODUCT((PopisPredavanja[DAN]=Raspored_sati[[#Headers],[SUBOTA]])*(ROUNDDOWN($B30,10)>=ROUNDDOWN(PopisPredavanja[VRIJEME POČETKA],10))*($B30<=PopisPredavanja[VRIJEME ZAVRŠETKA]),PopisPredavanja[JEDINSTVENO]),PopisPredavanja[JEDINSTVENO],0),2),0)","v":0}]
[null,"14:45:00",{"$f":"IFERROR(INDEX(PopisPredavanja[],MATCH(SUMPRODUCT((PopisPredavanja[DAN]=Raspored_sati[[#Headers],[NEDJELJA]])*(ROUNDDOWN($B31,10)>=ROUNDDOWN(PopisPredavanja[VRIJEME POČETKA],10))*($B31<=PopisPredavanja[VRIJEME ZAVRŠETKA]),PopisPredavanja[JEDINSTVENO]),PopisPredavanja[JEDINSTVENO],0),2),0)","v":0},{"$f":"IFERROR(INDEX(PopisPredavanja[],MATCH(SUMPRODUCT((PopisPredavanja[DAN]=Raspored_sati[[#Headers],[PONEDJELJAK]])*(ROUNDDOWN($B31,10)>=ROUNDDOWN(PopisPredavanja[VRIJEME POČETKA],10))*($B31<=PopisPredavanja[VRIJEME ZAVRŠETKA]),PopisPredavanja[JEDINSTVENO]),PopisPredavanja[JEDINSTVENO],0),2),0)","v":0},{"$f":"IFERROR(INDEX(PopisPredavanja[],MATCH(SUMPRODUCT((PopisPredavanja[DAN]=Raspored_sati[[#Headers],[UTORAK]])*(ROUNDDOWN($B31,10)>=ROUNDDOWN(PopisPredavanja[VRIJEME POČETKA],10))*($B31<=PopisPredavanja[VRIJEME ZAVRŠETKA]),PopisPredavanja[JEDINSTVENO]),PopisPredavanja[JEDINSTVENO],0),2),0)","v":0},{"$f":"IFERROR(INDEX(PopisPredavanja[],MATCH(SUMPRODUCT((PopisPredavanja[DAN]=Raspored_sati[[#Headers],[SRIJEDA]])*(ROUNDDOWN($B31,10)>=ROUNDDOWN(PopisPredavanja[VRIJEME POČETKA],10))*($B31<=PopisPredavanja[VRIJEME ZAVRŠETKA]),PopisPredavanja[JEDINSTVENO]),PopisPredavanja[JEDINSTVENO],0),2),0)","v":0},{"$f":"IFERROR(INDEX(PopisPredavanja[],MATCH(SUMPRODUCT((PopisPredavanja[DAN]=Raspored_sati[[#Headers],[ČETVRTAK]])*(ROUNDDOWN($B31,10)>=ROUNDDOWN(PopisPredavanja[VRIJEME POČETKA],10))*($B31<=PopisPredavanja[VRIJEME ZAVRŠETKA]),PopisPredavanja[JEDINSTVENO]),PopisPredavanja[JEDINSTVENO],0),2),0)","v":0},{"$f":"IFERROR(INDEX(PopisPredavanja[],MATCH(SUMPRODUCT((PopisPredavanja[DAN]=Raspored_sati[[#Headers],[PETAK]])*(ROUNDDOWN($B31,10)>=ROUNDDOWN(PopisPredavanja[VRIJEME POČETKA],10))*($B31<=PopisPredavanja[VRIJEME ZAVRŠETKA]),PopisPredavanja[JEDINSTVENO]),PopisPredavanja[JEDINSTVENO],0),2),0)","v":0},{"$f":"IFERROR(INDEX(PopisPredavanja[],MATCH(SUMPRODUCT((PopisPredavanja[DAN]=Raspored_sati[[#Headers],[SUBOTA]])*(ROUNDDOWN($B31,10)>=ROUNDDOWN(PopisPredavanja[VRIJEME POČETKA],10))*($B31<=PopisPredavanja[VRIJEME ZAVRŠETKA]),PopisPredavanja[JEDINSTVENO]),PopisPredavanja[JEDINSTVENO],0),2),0)","v":0}]
[null,"15:00:00",{"$f":"IFERROR(INDEX(PopisPredavanja[],MATCH(SUMPRODUCT((PopisPredavanja[DAN]=Raspored_sati[[#Headers],[NEDJELJA]])*(ROUNDDOWN($B32,10)>=ROUNDDOWN(PopisPredavanja[VRIJEME POČETKA],10))*($B32<=PopisPredavanja[VRIJEME ZAVRŠETKA]),PopisPredavanja[JEDINSTVENO]),PopisPredavanja[JEDINSTVENO],0),2),0)","v":0},{"$f":"IFERROR(INDEX(PopisPredavanja[],MATCH(SUMPRODUCT((PopisPredavanja[DAN]=Raspored_sati[[#Headers],[PONEDJELJAK]])*(ROUNDDOWN($B32,10)>=ROUNDDOWN(PopisPredavanja[VRIJEME POČETKA],10))*($B32<=PopisPredavanja[VRIJEME ZAVRŠETKA]),PopisPredavanja[JEDINSTVENO]),PopisPredavanja[JEDINSTVENO],0),2),0)","v":0},{"$f":"IFERROR(INDEX(PopisPredavanja[],MATCH(SUMPRODUCT((PopisPredavanja[DAN]=Raspored_sati[[#Headers],[UTORAK]])*(ROUNDDOWN($B32,10)>=ROUNDDOWN(PopisPredavanja[VRIJEME POČETKA],10))*($B32<=PopisPredavanja[VRIJEME ZAVRŠETKA]),PopisPredavanja[JEDINSTVENO]),PopisPredavanja[JEDINSTVENO],0),2),0)","v":0},{"$f":"IFERROR(INDEX(PopisPredavanja[],MATCH(SUMPRODUCT((PopisPredavanja[DAN]=Raspored_sati[[#Headers],[SRIJEDA]])*(ROUNDDOWN($B32,10)>=ROUNDDOWN(PopisPredavanja[VRIJEME POČETKA],10))*($B32<=PopisPredavanja[VRIJEME ZAVRŠETKA]),PopisPredavanja[JEDINSTVENO]),PopisPredavanja[JEDINSTVENO],0),2),0)","v":0},{"$f":"IFERROR(INDEX(PopisPredavanja[],MATCH(SUMPRODUCT((PopisPredavanja[DAN]=Raspored_sati[[#Headers],[ČETVRTAK]])*(ROUNDDOWN($B32,10)>=ROUNDDOWN(PopisPredavanja[VRIJEME POČETKA],10))*($B32<=PopisPredavanja[VRIJEME ZAVRŠETKA]),PopisPredavanja[JEDINSTVENO]),PopisPredavanja[JEDINSTVENO],0),2),0)","v":0},{"$f":"IFERROR(INDEX(PopisPredavanja[],MATCH(SUMPRODUCT((PopisPredavanja[DAN]=Raspored_sati[[#Headers],[PETAK]])*(ROUNDDOWN($B32,10)>=ROUNDDOWN(PopisPredavanja[VRIJEME POČETKA],10))*($B32<=PopisPredavanja[VRIJEME ZAVRŠETKA]),PopisPredavanja[JEDINSTVENO]),PopisPredavanja[JEDINSTVENO],0),2),0)","v":0},{"$f":"IFERROR(INDEX(PopisPredavanja[],MATCH(SUMPRODUCT((PopisPredavanja[DAN]=Raspored_sati[[#Headers],[SUBOTA]])*(ROUNDDOWN($B32,10)>=ROUNDDOWN(PopisPredavanja[VRIJEME POČETKA],10))*($B32<=PopisPredavanja[VRIJEME ZAVRŠETKA]),PopisPredavanja[JEDINSTVENO]),PopisPredavanja[JEDINSTVENO],0),2),0)","v":0}]
[null,"15:15:00",{"$f":"IFERROR(INDEX(PopisPredavanja[],MATCH(SUMPRODUCT((PopisPredavanja[DAN]=Raspored_sati[[#Headers],[NEDJELJA]])*(ROUNDDOWN($B33,10)>=ROUNDDOWN(PopisPredavanja[VRIJEME POČETKA],10))*($B33<=PopisPredavanja[VRIJEME ZAVRŠETKA]),PopisPredavanja[JEDINSTVENO]),PopisPredavanja[JEDINSTVENO],0),2),0)","v":0},{"$f":"IFERROR(INDEX(PopisPredavanja[],MATCH(SUMPRODUCT((PopisPredavanja[DAN]=Raspored_sati[[#Headers],[PONEDJELJAK]])*(ROUNDDOWN($B33,10)>=ROUNDDOWN(PopisPredavanja[VRIJEME POČETKA],10))*($B33<=PopisPredavanja[VRIJEME ZAVRŠETKA]),PopisPredavanja[JEDINSTVENO]),PopisPredavanja[JEDINSTVENO],0),2),0)","v":0},{"$f":"IFERROR(INDEX(PopisPredavanja[],MATCH(SUMPRODUCT((PopisPredavanja[DAN]=Raspored_sati[[#Headers],[UTORAK]])*(ROUNDDOWN($B33,10)>=ROUNDDOWN(PopisPredavanja[VRIJEME POČETKA],10))*($B33<=PopisPredavanja[VRIJEME ZAVRŠETKA]),PopisPredavanja[JEDINSTVENO]),PopisPredavanja[JEDINSTVENO],0),2),0)","v":0},{"$f":"IFERROR(INDEX(PopisPredavanja[],MATCH(SUMPRODUCT((PopisPredavanja[DAN]=Raspored_sati[[#Headers],[SRIJEDA]])*(ROUNDDOWN($B33,10)>=ROUNDDOWN(PopisPredavanja[VRIJEME POČETKA],10))*($B33<=PopisPredavanja[VRIJEME ZAVRŠETKA]),PopisPredavanja[JEDINSTVENO]),PopisPredavanja[JEDINSTVENO],0),2),0)","v":0},{"$f":"IFERROR(INDEX(PopisPredavanja[],MATCH(SUMPRODUCT((PopisPredavanja[DAN]=Raspored_sati[[#Headers],[ČETVRTAK]])*(ROUNDDOWN($B33,10)>=ROUNDDOWN(PopisPredavanja[VRIJEME POČETKA],10))*($B33<=PopisPredavanja[VRIJEME ZAVRŠETKA]),PopisPredavanja[JEDINSTVENO]),PopisPredavanja[JEDINSTVENO],0),2),0)","v":0},{"$f":"IFERROR(INDEX(PopisPredavanja[],MATCH(SUMPRODUCT((PopisPredavanja[DAN]=Raspored_sati[[#Headers],[PETAK]])*(ROUNDDOWN($B33,10)>=ROUNDDOWN(PopisPredavanja[VRIJEME POČETKA],10))*($B33<=PopisPredavanja[VRIJEME ZAVRŠETKA]),PopisPredavanja[JEDINSTVENO]),PopisPredavanja[JEDINSTVENO],0),2),0)","v":0},{"$f":"IFERROR(INDEX(PopisPredavanja[],MATCH(SUMPRODUCT((PopisPredavanja[DAN]=Raspored_sati[[#Headers],[SUBOTA]])*(ROUNDDOWN($B33,10)>=ROUNDDOWN(PopisPredavanja[VRIJEME POČETKA],10))*($B33<=PopisPredavanja[VRIJEME ZAVRŠETKA]),PopisPredavanja[JEDINSTVENO]),PopisPredavanja[JEDINSTVENO],0),2),0)","v":0}]
[null,"15:30:00",{"$f":"IFERROR(INDEX(PopisPredavanja[],MATCH(SUMPRODUCT((PopisPredavanja[DAN]=Raspored_sati[[#Headers],[NEDJELJA]])*(ROUNDDOWN($B34,10)>=ROUNDDOWN(PopisPredavanja[VRIJEME POČETKA],10))*($B34<=PopisPredavanja[VRIJEME ZAVRŠETKA]),PopisPredavanja[JEDINSTVENO]),PopisPredavanja[JEDINSTVENO],0),2),0)","v":0},{"$f":"IFERROR(INDEX(PopisPredavanja[],MATCH(SUMPRODUCT((PopisPredavanja[DAN]=Raspored_sati[[#Headers],[PONEDJELJAK]])*(ROUNDDOWN($B34,10)>=ROUNDDOWN(PopisPredavanja[VRIJEME POČETKA],10))*($B34<=PopisPredavanja[VRIJEME ZAVRŠETKA]),PopisPredavanja[JEDINSTVENO]),PopisPredavanja[JEDINSTVENO],0),2),0)","v":0},{"$f":"IFERROR(INDEX(PopisPredavanja[],MATCH(SUMPRODUCT((PopisPredavanja[DAN]=Raspored_sati[[#Headers],[UTORAK]])*(ROUNDDOWN($B34,10)>=ROUNDDOWN(PopisPredavanja[VRIJEME POČETKA],10))*($B34<=PopisPredavanja[VRIJEME ZAVRŠETKA]),PopisPredavanja[JEDINSTVENO]),PopisPredavanja[JEDINSTVENO],0),2),0)","v":0},{"$f":"IFERROR(INDEX(PopisPredavanja[],MATCH(SUMPRODUCT((PopisPredavanja[DAN]=Raspored_sati[[#Headers],[SRIJEDA]])*(ROUNDDOWN($B34,10)>=ROUNDDOWN(PopisPredavanja[VRIJEME POČETKA],10))*($B34<=PopisPredavanja[VRIJEME ZAVRŠETKA]),PopisPredavanja[JEDINSTVENO]),PopisPredavanja[JEDINSTVENO],0),2),0)","v":0},{"$f":"IFERROR(INDEX(PopisPredavanja[],MATCH(SUMPRODUCT((PopisPredavanja[DAN]=Raspored_sati[[#Headers],[ČETVRTAK]])*(ROUNDDOWN($B34,10)>=ROUNDDOWN(PopisPredavanja[VRIJEME POČETKA],10))*($B34<=PopisPredavanja[VRIJEME ZAVRŠETKA]),PopisPredavanja[JEDINSTVENO]),PopisPredavanja[JEDINSTVENO],0),2),0)","v":0},{"$f":"IFERROR(INDEX(PopisPredavanja[],MATCH(SUMPRODUCT((PopisPredavanja[DAN]=Raspored_sati[[#Headers],[PETAK]])*(ROUNDDOWN($B34,10)>=ROUNDDOWN(PopisPredavanja[VRIJEME POČETKA],10))*($B34<=PopisPredavanja[VRIJEME ZAVRŠETKA]),PopisPredavanja[JEDINSTVENO]),PopisPredavanja[JEDINSTVENO],0),2),0)","v":0},{"$f":"IFERROR(INDEX(PopisPredavanja[],MATCH(SUMPRODUCT((PopisPredavanja[DAN]=Raspored_sati[[#Headers],[SUBOTA]])*(ROUNDDOWN($B34,10)>=ROUNDDOWN(PopisPredavanja[VRIJEME POČETKA],10))*($B34<=PopisPredavanja[VRIJEME ZAVRŠETKA]),PopisPredavanja[JEDINSTVENO]),PopisPredavanja[JEDINSTVENO],0),2),0)","v":0}]
[null,"15:45:00",{"$f":"IFERROR(INDEX(PopisPredavanja[],MATCH(SUMPRODUCT((PopisPredavanja[DAN]=Raspored_sati[[#Headers],[NEDJELJA]])*(ROUNDDOWN($B35,10)>=ROUNDDOWN(PopisPredavanja[VRIJEME POČETKA],10))*($B35<=PopisPredavanja[VRIJEME ZAVRŠETKA]),PopisPredavanja[JEDINSTVENO]),PopisPredavanja[JEDINSTVENO],0),2),0)","v":0},{"$f":"IFERROR(INDEX(PopisPredavanja[],MATCH(SUMPRODUCT((PopisPredavanja[DAN]=Raspored_sati[[#Headers],[PONEDJELJAK]])*(ROUNDDOWN($B35,10)>=ROUNDDOWN(PopisPredavanja[VRIJEME POČETKA],10))*($B35<=PopisPredavanja[VRIJEME ZAVRŠETKA]),PopisPredavanja[JEDINSTVENO]),PopisPredavanja[JEDINSTVENO],0),2),0)","v":0},{"$f":"IFERROR(INDEX(PopisPredavanja[],MATCH(SUMPRODUCT((PopisPredavanja[DAN]=Raspored_sati[[#Headers],[UTORAK]])*(ROUNDDOWN($B35,10)>=ROUNDDOWN(PopisPredavanja[VRIJEME POČETKA],10))*($B35<=PopisPredavanja[VRIJEME ZAVRŠETKA]),PopisPredavanja[JEDINSTVENO]),PopisPredavanja[JEDINSTVENO],0),2),0)","v":0},{"$f":"IFERROR(INDEX(PopisPredavanja[],MATCH(SUMPRODUCT((PopisPredavanja[DAN]=Raspored_sati[[#Headers],[SRIJEDA]])*(ROUNDDOWN($B35,10)>=ROUNDDOWN(PopisPredavanja[VRIJEME POČETKA],10))*($B35<=PopisPredavanja[VRIJEME ZAVRŠETKA]),PopisPredavanja[JEDINSTVENO]),PopisPredavanja[JEDINSTVENO],0),2),0)","v":0},{"$f":"IFERROR(INDEX(PopisPredavanja[],MATCH(SUMPRODUCT((PopisPredavanja[DAN]=Raspored_sati[[#Headers],[ČETVRTAK]])*(ROUNDDOWN($B35,10)>=ROUNDDOWN(PopisPredavanja[VRIJEME POČETKA],10))*($B35<=PopisPredavanja[VRIJEME ZAVRŠETKA]),PopisPredavanja[JEDINSTVENO]),PopisPredavanja[JEDINSTVENO],0),2),0)","v":0},{"$f":"IFERROR(INDEX(PopisPredavanja[],MATCH(SUMPRODUCT((PopisPredavanja[DAN]=Raspored_sati[[#Headers],[PETAK]])*(ROUNDDOWN($B35,10)>=ROUNDDOWN(PopisPredavanja[VRIJEME POČETKA],10))*($B35<=PopisPredavanja[VRIJEME ZAVRŠETKA]),PopisPredavanja[JEDINSTVENO]),PopisPredavanja[JEDINSTVENO],0),2),0)","v":0},{"$f":"IFERROR(INDEX(PopisPredavanja[],MATCH(SUMPRODUCT((PopisPredavanja[DAN]=Raspored_sati[[#Headers],[SUBOTA]])*(ROUNDDOWN($B35,10)>=ROUNDDOWN(PopisPredavanja[VRIJEME POČETKA],10))*($B35<=PopisPredavanja[VRIJEME ZAVRŠETKA]),PopisPredavanja[JEDINSTVENO]),PopisPredavanja[JEDINSTVENO],0),2),0)","v":0}]
[null,"16:00:00",{"$f":"IFERROR(INDEX(PopisPredavanja[],MATCH(SUMPRODUCT((PopisPredavanja[DAN]=Raspored_sati[[#Headers],[NEDJELJA]])*(ROUNDDOWN($B36,10)>=ROUNDDOWN(PopisPredavanja[VRIJEME POČETKA],10))*($B36<=PopisPredavanja[VRIJEME ZAVRŠETKA]),PopisPredavanja[JEDINSTVENO]),PopisPredavanja[JEDINSTVENO],0),2),0)","v":0},{"$f":"IFERROR(INDEX(PopisPredavanja[],MATCH(SUMPRODUCT((PopisPredavanja[DAN]=Raspored_sati[[#Headers],[PONEDJELJAK]])*(ROUNDDOWN($B36,10)>=ROUNDDOWN(PopisPredavanja[VRIJEME POČETKA],10))*($B36<=PopisPredavanja[VRIJEME ZAVRŠETKA]),PopisPredavanja[JEDINSTVENO]),PopisPredavanja[JEDINSTVENO],0),2),0)","v":"SP-111"},{"$f":"IFERROR(INDEX(PopisPredavanja[],MATCH(SUMPRODUCT((PopisPredavanja[DAN]=Raspored_sati[[#Headers],[UTORAK]])*(ROUNDDOWN($B36,10)>=ROUNDDOWN(PopisPredavanja[VRIJEME POČETKA],10))*($B36<=PopisPredavanja[VRIJEME ZAVRŠETKA]),PopisPredavanja[JEDINSTVENO]),PopisPredavanja[JEDINSTVENO],0),2),0)","v":0},{"$f":"IFERROR(INDEX(PopisPredavanja[],MATCH(SUMPRODUCT((PopisPredavanja[DAN]=Raspored_sati[[#Headers],[SRIJEDA]])*(ROUNDDOWN($B36,10)>=ROUNDDOWN(PopisPredavanja[VRIJEME POČETKA],10))*($B36<=PopisPredavanja[VRIJEME ZAVRŠETKA]),PopisPredavanja[JEDINSTVENO]),PopisPredavanja[JEDINSTVENO],0),2),0)","v":0},{"$f":"IFERROR(INDEX(PopisPredavanja[],MATCH(SUMPRODUCT((PopisPredavanja[DAN]=Raspored_sati[[#Headers],[ČETVRTAK]])*(ROUNDDOWN($B36,10)>=ROUNDDOWN(PopisPredavanja[VRIJEME POČETKA],10))*($B36<=PopisPredavanja[VRIJEME ZAVRŠETKA]),PopisPredavanja[JEDINSTVENO]),PopisPredavanja[JEDINSTVENO],0),2),0)","v":0},{"$f":"IFERROR(INDEX(PopisPredavanja[],MATCH(SUMPRODUCT((PopisPredavanja[DAN]=Raspored_sati[[#Headers],[PETAK]])*(ROUNDDOWN($B36,10)>=ROUNDDOWN(PopisPredavanja[VRIJEME POČETKA],10))*($B36<=PopisPredavanja[VRIJEME ZAVRŠETKA]),PopisPredavanja[JEDINSTVENO]),PopisPredavanja[JEDINSTVENO],0),2),0)","v":0},{"$f":"IFERROR(INDEX(PopisPredavanja[],MATCH(SUMPRODUCT((PopisPredavanja[DAN]=Raspored_sati[[#Headers],[SUBOTA]])*(ROUNDDOWN($B36,10)>=ROUNDDOWN(PopisPredavanja[VRIJEME POČETKA],10))*($B36<=PopisPredavanja[VRIJEME ZAVRŠETKA]),PopisPredavanja[JEDINSTVENO]),PopisPredavanja[JEDINSTVENO],0),2),0)","v":0}]
[null,{"$f":"B36+Interval","v":"16:15:00"},{"$f":"IFERROR(INDEX(PopisPredavanja[],MATCH(SUMPRODUCT((PopisPredavanja[DAN]=Raspored_sati[[#Headers],[NEDJELJA]])*(ROUNDDOWN($B37,10)>=ROUNDDOWN(PopisPredavanja[VRIJEME POČETKA],10))*($B37<=PopisPredavanja[VRIJEME ZAVRŠETKA]),PopisPredavanja[JEDINSTVENO]),PopisPredavanja[JEDINSTVENO],0),2),0)","v":0},{"$f":"IFERROR(INDEX(PopisPredavanja[],MATCH(SUMPRODUCT((PopisPredavanja[DAN]=Raspored_sati[[#Headers],[PONEDJELJAK]])*(ROUNDDOWN($B37,10)>=ROUNDDOWN(PopisPredavanja[VRIJEME POČETKA],10))*($B37<=PopisPredavanja[VRIJEME ZAVRŠETKA]),PopisPredavanja[JEDINSTVENO]),PopisPredavanja[JEDINSTVENO],0),2),0)","v":"SP-111"},{"$f":"IFERROR(INDEX(PopisPredavanja[],MATCH(SUMPRODUCT((PopisPredavanja[DAN]=Raspored_sati[[#Headers],[UTORAK]])*(ROUNDDOWN($B37,10)>=ROUNDDOWN(PopisPredavanja[VRIJEME POČETKA],10))*($B37<=PopisPredavanja[VRIJEME ZAVRŠETKA]),PopisPredavanja[JEDINSTVENO]),PopisPredavanja[JEDINSTVENO],0),2),0)","v":0},{"$f":"IFERROR(INDEX(PopisPredavanja[],MATCH(SUMPRODUCT((PopisPredavanja[DAN]=Raspored_sati[[#Headers],[SRIJEDA]])*(ROUNDDOWN($B37,10)>=ROUNDDOWN(PopisPredavanja[VRIJEME POČETKA],10))*($B37<=PopisPredavanja[VRIJEME ZAVRŠETKA]),PopisPredavanja[JEDINSTVENO]),PopisPredavanja[JEDINSTVENO],0),2),0)","v":0},{"$f":"IFERROR(INDEX(PopisPredavanja[],MATCH(SUMPRODUCT((PopisPredavanja[DAN]=Raspored_sati[[#Headers],[ČETVRTAK]])*(ROUNDDOWN($B37,10)>=ROUNDDOWN(PopisPredavanja[VRIJEME POČETKA],10))*($B37<=PopisPredavanja[VRIJEME ZAVRŠETKA]),PopisPredavanja[JEDINSTVENO]),PopisPredavanja[JEDINSTVENO],0),2),0)","v":0},{"$f":"IFERROR(INDEX(PopisPredavanja[],MATCH(SUMPRODUCT((PopisPredavanja[DAN]=Raspored_sati[[#Headers],[PETAK]])*(ROUNDDOWN($B37,10)>=ROUNDDOWN(PopisPredavanja[VRIJEME POČETKA],10))*($B37<=PopisPredavanja[VRIJEME ZAVRŠETKA]),PopisPredavanja[JEDINSTVENO]),PopisPredavanja[JEDINSTVENO],0),2),0)","v":0},{"$f":"IFERROR(INDEX(PopisPredavanja[],MATCH(SUMPRODUCT((PopisPredavanja[DAN]=Raspored_sati[[#Headers],[SUBOTA]])*(ROUNDDOWN($B37,10)>=ROUNDDOWN(PopisPredavanja[VRIJEME POČETKA],10))*($B37<=PopisPredavanja[VRIJEME ZAVRŠETKA]),PopisPredavanja[JEDINSTVENO]),PopisPredavanja[JEDINSTVENO],0),2),0)","v":0}]
[null,"16:30:00",{"$f":"IFERROR(INDEX(PopisPredavanja[],MATCH(SUMPRODUCT((PopisPredavanja[DAN]=Raspored_sati[[#Headers],[NEDJELJA]])*(ROUNDDOWN($B38,10)>=ROUNDDOWN(PopisPredavanja[VRIJEME POČETKA],10))*($B38<=PopisPredavanja[VRIJEME ZAVRŠETKA]),PopisPredavanja[JEDINSTVENO]),PopisPredavanja[JEDINSTVENO],0),2),0)","v":0},{"$f":"IFERROR(INDEX(PopisPredavanja[],MATCH(SUMPRODUCT((PopisPredavanja[DAN]=Raspored_sati[[#Headers],[PONEDJELJAK]])*(ROUNDDOWN($B38,10)>=ROUNDDOWN(PopisPredavanja[VRIJEME POČETKA],10))*($B38<=PopisPredavanja[VRIJEME ZAVRŠETKA]),PopisPredavanja[JEDINSTVENO]),PopisPredavanja[JEDINSTVENO],0),2),0)","v":"SP-111"},{"$f":"IFERROR(INDEX(PopisPredavanja[],MATCH(SUMPRODUCT((PopisPredavanja[DAN]=Raspored_sati[[#Headers],[UTORAK]])*(ROUNDDOWN($B38,10)>=ROUNDDOWN(PopisPredavanja[VRIJEME POČETKA],10))*($B38<=PopisPredavanja[VRIJEME ZAVRŠETKA]),PopisPredavanja[JEDINSTVENO]),PopisPredavanja[JEDINSTVENO],0),2),0)","v":0},{"$f":"IFERROR(INDEX(PopisPredavanja[],MATCH(SUMPRODUCT((PopisPredavanja[DAN]=Raspored_sati[[#Headers],[SRIJEDA]])*(ROUNDDOWN($B38,10)>=ROUNDDOWN(PopisPredavanja[VRIJEME POČETKA],10))*($B38<=PopisPredavanja[VRIJEME ZAVRŠETKA]),PopisPredavanja[JEDINSTVENO]),PopisPredavanja[JEDINSTVENO],0),2),0)","v":0},{"$f":"IFERROR(INDEX(PopisPredavanja[],MATCH(SUMPRODUCT((PopisPredavanja[DAN]=Raspored_sati[[#Headers],[ČETVRTAK]])*(ROUNDDOWN($B38,10)>=ROUNDDOWN(PopisPredavanja[VRIJEME POČETKA],10))*($B38<=PopisPredavanja[VRIJEME ZAVRŠETKA]),PopisPredavanja[JEDINSTVENO]),PopisPredavanja[JEDINSTVENO],0),2),0)","v":0},{"$f":"IFERROR(INDEX(PopisPredavanja[],MATCH(SUMPRODUCT((PopisPredavanja[DAN]=Raspored_sati[[#Headers],[PETAK]])*(ROUNDDOWN($B38,10)>=ROUNDDOWN(PopisPredavanja[VRIJEME POČETKA],10))*($B38<=PopisPredavanja[VRIJEME ZAVRŠETKA]),PopisPredavanja[JEDINSTVENO]),PopisPredavanja[JEDINSTVENO],0),2),0)","v":0},{"$f":"IFERROR(INDEX(PopisPredavanja[],MATCH(SUMPRODUCT((PopisPredavanja[DAN]=Raspored_sati[[#Headers],[SUBOTA]])*(ROUNDDOWN($B38,10)>=ROUNDDOWN(PopisPredavanja[VRIJEME POČETKA],10))*($B38<=PopisPredavanja[VRIJEME ZAVRŠETKA]),PopisPredavanja[JEDINSTVENO]),PopisPredavanja[JEDINSTVENO],0),2),0)","v":0}]
[null,"16:45:00",{"$f":"IFERROR(INDEX(PopisPredavanja[],MATCH(SUMPRODUCT((PopisPredavanja[DAN]=Raspored_sati[[#Headers],[NEDJELJA]])*(ROUNDDOWN($B39,10)>=ROUNDDOWN(PopisPredavanja[VRIJEME POČETKA],10))*($B39<=PopisPredavanja[VRIJEME ZAVRŠETKA]),PopisPredavanja[JEDINSTVENO]),PopisPredavanja[JEDINSTVENO],0),2),0)","v":0},{"$f":"IFERROR(INDEX(PopisPredavanja[],MATCH(SUMPRODUCT((PopisPredavanja[DAN]=Raspored_sati[[#Headers],[PONEDJELJAK]])*(ROUNDDOWN($B39,10)>=ROUNDDOWN(PopisPredavanja[VRIJEME POČETKA],10))*($B39<=PopisPredavanja[VRIJEME ZAVRŠETKA]),PopisPredavanja[JEDINSTVENO]),PopisPredavanja[JEDINSTVENO],0),2),0)","v":"SP-111"},{"$f":"IFERROR(INDEX(PopisPredavanja[],MATCH(SUMPRODUCT((PopisPredavanja[DAN]=Raspored_sati[[#Headers],[UTORAK]])*(ROUNDDOWN($B39,10)>=ROUNDDOWN(PopisPredavanja[VRIJEME POČETKA],10))*($B39<=PopisPredavanja[VRIJEME ZAVRŠETKA]),PopisPredavanja[JEDINSTVENO]),PopisPredavanja[JEDINSTVENO],0),2),0)","v":0},{"$f":"IFERROR(INDEX(PopisPredavanja[],MATCH(SUMPRODUCT((PopisPredavanja[DAN]=Raspored_sati[[#Headers],[SRIJEDA]])*(ROUNDDOWN($B39,10)>=ROUNDDOWN(PopisPredavanja[VRIJEME POČETKA],10))*($B39<=PopisPredavanja[VRIJEME ZAVRŠETKA]),PopisPredavanja[JEDINSTVENO]),PopisPredavanja[JEDINSTVENO],0),2),0)","v":0},{"$f":"IFERROR(INDEX(PopisPredavanja[],MATCH(SUMPRODUCT((PopisPredavanja[DAN]=Raspored_sati[[#Headers],[ČETVRTAK]])*(ROUNDDOWN($B39,10)>=ROUNDDOWN(PopisPredavanja[VRIJEME POČETKA],10))*($B39<=PopisPredavanja[VRIJEME ZAVRŠETKA]),PopisPredavanja[JEDINSTVENO]),PopisPredavanja[JEDINSTVENO],0),2),0)","v":0},{"$f":"IFERROR(INDEX(PopisPredavanja[],MATCH(SUMPRODUCT((PopisPredavanja[DAN]=Raspored_sati[[#Headers],[PETAK]])*(ROUNDDOWN($B39,10)>=ROUNDDOWN(PopisPredavanja[VRIJEME POČETKA],10))*($B39<=PopisPredavanja[VRIJEME ZAVRŠETKA]),PopisPredavanja[JEDINSTVENO]),PopisPredavanja[JEDINSTVENO],0),2),0)","v":0},{"$f":"IFERROR(INDEX(PopisPredavanja[],MATCH(SUMPRODUCT((PopisPredavanja[DAN]=Raspored_sati[[#Headers],[SUBOTA]])*(ROUNDDOWN($B39,10)>=ROUNDDOWN(PopisPredavanja[VRIJEME POČETKA],10))*($B39<=PopisPredavanja[VRIJEME ZAVRŠETKA]),PopisPredavanja[JEDINSTVENO]),PopisPredavanja[JEDINSTVENO],0),2),0)","v":0}]
[null,"17:00:00",{"$f":"IFERROR(INDEX(PopisPredavanja[],MATCH(SUMPRODUCT((PopisPredavanja[DAN]=Raspored_sati[[#Headers],[NEDJELJA]])*(ROUNDDOWN($B40,10)>=ROUNDDOWN(PopisPredavanja[VRIJEME POČETKA],10))*($B40<=PopisPredavanja[VRIJEME ZAVRŠETKA]),PopisPredavanja[JEDINSTVENO]),PopisPredavanja[JEDINSTVENO],0),2),0)","v":0},{"$f":"IFERROR(INDEX(PopisPredavanja[],MATCH(SUMPRODUCT((PopisPredavanja[DAN]=Raspored_sati[[#Headers],[PONEDJELJAK]])*(ROUNDDOWN($B40,10)>=ROUNDDOWN(PopisPredavanja[VRIJEME POČETKA],10))*($B40<=PopisPredavanja[VRIJEME ZAVRŠETKA]),PopisPredavanja[JEDINSTVENO]),PopisPredavanja[JEDINSTVENO],0),2),0)","v":"SP-111"},{"$f":"IFERROR(INDEX(PopisPredavanja[],MATCH(SUMPRODUCT((PopisPredavanja[DAN]=Raspored_sati[[#Headers],[UTORAK]])*(ROUNDDOWN($B40,10)>=ROUNDDOWN(PopisPredavanja[VRIJEME POČETKA],10))*($B40<=PopisPredavanja[VRIJEME ZAVRŠETKA]),PopisPredavanja[JEDINSTVENO]),PopisPredavanja[JEDINSTVENO],0),2),0)","v":0},{"$f":"IFERROR(INDEX(PopisPredavanja[],MATCH(SUMPRODUCT((PopisPredavanja[DAN]=Raspored_sati[[#Headers],[SRIJEDA]])*(ROUNDDOWN($B40,10)>=ROUNDDOWN(PopisPredavanja[VRIJEME POČETKA],10))*($B40<=PopisPredavanja[VRIJEME ZAVRŠETKA]),PopisPredavanja[JEDINSTVENO]),PopisPredavanja[JEDINSTVENO],0),2),0)","v":0},{"$f":"IFERROR(INDEX(PopisPredavanja[],MATCH(SUMPRODUCT((PopisPredavanja[DAN]=Raspored_sati[[#Headers],[ČETVRTAK]])*(ROUNDDOWN($B40,10)>=ROUNDDOWN(PopisPredavanja[VRIJEME POČETKA],10))*($B40<=PopisPredavanja[VRIJEME ZAVRŠETKA]),PopisPredavanja[JEDINSTVENO]),PopisPredavanja[JEDINSTVENO],0),2),0)","v":0},{"$f":"IFERROR(INDEX(PopisPredavanja[],MATCH(SUMPRODUCT((PopisPredavanja[DAN]=Raspored_sati[[#Headers],[PETAK]])*(ROUNDDOWN($B40,10)>=ROUNDDOWN(PopisPredavanja[VRIJEME POČETKA],10))*($B40<=PopisPredavanja[VRIJEME ZAVRŠETKA]),PopisPredavanja[JEDINSTVENO]),PopisPredavanja[JEDINSTVENO],0),2),0)","v":0},{"$f":"IFERROR(INDEX(PopisPredavanja[],MATCH(SUMPRODUCT((PopisPredavanja[DAN]=Raspored_sati[[#Headers],[SUBOTA]])*(ROUNDDOWN($B40,10)>=ROUNDDOWN(PopisPredavanja[VRIJEME POČETKA],10))*($B40<=PopisPredavanja[VRIJEME ZAVRŠETKA]),PopisPredavanja[JEDINSTVENO]),PopisPredavanja[JEDINSTVENO],0),2),0)","v":0}]
[null,"17:15:00",{"$f":"IFERROR(INDEX(PopisPredavanja[],MATCH(SUMPRODUCT((PopisPredavanja[DAN]=Raspored_sati[[#Headers],[NEDJELJA]])*(ROUNDDOWN($B41,10)>=ROUNDDOWN(PopisPredavanja[VRIJEME POČETKA],10))*($B41<=PopisPredavanja[VRIJEME ZAVRŠETKA]),PopisPredavanja[JEDINSTVENO]),PopisPredavanja[JEDINSTVENO],0),2),0)","v":0},{"$f":"IFERROR(INDEX(PopisPredavanja[],MATCH(SUMPRODUCT((PopisPredavanja[DAN]=Raspored_sati[[#Headers],[PONEDJELJAK]])*(ROUNDDOWN($B41,10)>=ROUNDDOWN(PopisPredavanja[VRIJEME POČETKA],10))*($B41<=PopisPredavanja[VRIJEME ZAVRŠETKA]),PopisPredavanja[JEDINSTVENO]),PopisPredavanja[JEDINSTVENO],0),2),0)","v":0},{"$f":"IFERROR(INDEX(PopisPredavanja[],MATCH(SUMPRODUCT((PopisPredavanja[DAN]=Raspored_sati[[#Headers],[UTORAK]])*(ROUNDDOWN($B41,10)>=ROUNDDOWN(PopisPredavanja[VRIJEME POČETKA],10))*($B41<=PopisPredavanja[VRIJEME ZAVRŠETKA]),PopisPredavanja[JEDINSTVENO]),PopisPredavanja[JEDINSTVENO],0),2),0)","v":0},{"$f":"IFERROR(INDEX(PopisPredavanja[],MATCH(SUMPRODUCT((PopisPredavanja[DAN]=Raspored_sati[[#Headers],[SRIJEDA]])*(ROUNDDOWN($B41,10)>=ROUNDDOWN(PopisPredavanja[VRIJEME POČETKA],10))*($B41<=PopisPredavanja[VRIJEME ZAVRŠETKA]),PopisPredavanja[JEDINSTVENO]),PopisPredavanja[JEDINSTVENO],0),2),0)","v":0},{"$f":"IFERROR(INDEX(PopisPredavanja[],MATCH(SUMPRODUCT((PopisPredavanja[DAN]=Raspored_sati[[#Headers],[ČETVRTAK]])*(ROUNDDOWN($B41,10)>=ROUNDDOWN(PopisPredavanja[VRIJEME POČETKA],10))*($B41<=PopisPredavanja[VRIJEME ZAVRŠETKA]),PopisPredavanja[JEDINSTVENO]),PopisPredavanja[JEDINSTVENO],0),2),0)","v":0},{"$f":"IFERROR(INDEX(PopisPredavanja[],MATCH(SUMPRODUCT((PopisPredavanja[DAN]=Raspored_sati[[#Headers],[PETAK]])*(ROUNDDOWN($B41,10)>=ROUNDDOWN(PopisPredavanja[VRIJEME POČETKA],10))*($B41<=PopisPredavanja[VRIJEME ZAVRŠETKA]),PopisPredavanja[JEDINSTVENO]),PopisPredavanja[JEDINSTVENO],0),2),0)","v":0},{"$f":"IFERROR(INDEX(PopisPredavanja[],MATCH(SUMPRODUCT((PopisPredavanja[DAN]=Raspored_sati[[#Headers],[SUBOTA]])*(ROUNDDOWN($B41,10)>=ROUNDDOWN(PopisPredavanja[VRIJEME POČETKA],10))*($B41<=PopisPredavanja[VRIJEME ZAVRŠETKA]),PopisPredavanja[JEDINSTVENO]),PopisPredavanja[JEDINSTVENO],0),2),0)","v":0}]
[null,"17:30:00",{"$f":"IFERROR(INDEX(PopisPredavanja[],MATCH(SUMPRODUCT((PopisPredavanja[DAN]=Raspored_sati[[#Headers],[NEDJELJA]])*(ROUNDDOWN($B42,10)>=ROUNDDOWN(PopisPredavanja[VRIJEME POČETKA],10))*($B42<=PopisPredavanja[VRIJEME ZAVRŠETKA]),PopisPredavanja[JEDINSTVENO]),PopisPredavanja[JEDINSTVENO],0),2),0)","v":0},{"$f":"IFERROR(INDEX(PopisPredavanja[],MATCH(SUMPRODUCT((PopisPredavanja[DAN]=Raspored_sati[[#Headers],[PONEDJELJAK]])*(ROUNDDOWN($B42,10)>=ROUNDDOWN(PopisPredavanja[VRIJEME POČETKA],10))*($B42<=PopisPredavanja[VRIJEME ZAVRŠETKA]),PopisPredavanja[JEDINSTVENO]),PopisPredavanja[JEDINSTVENO],0),2),0)","v":0},{"$f":"IFERROR(INDEX(PopisPredavanja[],MATCH(SUMPRODUCT((PopisPredavanja[DAN]=Raspored_sati[[#Headers],[UTORAK]])*(ROUNDDOWN($B42,10)>=ROUNDDOWN(PopisPredavanja[VRIJEME POČETKA],10))*($B42<=PopisPredavanja[VRIJEME ZAVRŠETKA]),PopisPredavanja[JEDINSTVENO]),PopisPredavanja[JEDINSTVENO],0),2),0)","v":0},{"$f":"IFERROR(INDEX(PopisPredavanja[],MATCH(SUMPRODUCT((PopisPredavanja[DAN]=Raspored_sati[[#Headers],[SRIJEDA]])*(ROUNDDOWN($B42,10)>=ROUNDDOWN(PopisPredavanja[VRIJEME POČETKA],10))*($B42<=PopisPredavanja[VRIJEME ZAVRŠETKA]),PopisPredavanja[JEDINSTVENO]),PopisPredavanja[JEDINSTVENO],0),2),0)","v":0},{"$f":"IFERROR(INDEX(PopisPredavanja[],MATCH(SUMPRODUCT((PopisPredavanja[DAN]=Raspored_sati[[#Headers],[ČETVRTAK]])*(ROUNDDOWN($B42,10)>=ROUNDDOWN(PopisPredavanja[VRIJEME POČETKA],10))*($B42<=PopisPredavanja[VRIJEME ZAVRŠETKA]),PopisPredavanja[JEDINSTVENO]),PopisPredavanja[JEDINSTVENO],0),2),0)","v":0},{"$f":"IFERROR(INDEX(PopisPredavanja[],MATCH(SUMPRODUCT((PopisPredavanja[DAN]=Raspored_sati[[#Headers],[PETAK]])*(ROUNDDOWN($B42,10)>=ROUNDDOWN(PopisPredavanja[VRIJEME POČETKA],10))*($B42<=PopisPredavanja[VRIJEME ZAVRŠETKA]),PopisPredavanja[JEDINSTVENO]),PopisPredavanja[JEDINSTVENO],0),2),0)","v":0},{"$f":"IFERROR(INDEX(PopisPredavanja[],MATCH(SUMPRODUCT((PopisPredavanja[DAN]=Raspored_sati[[#Headers],[SUBOTA]])*(ROUNDDOWN($B42,10)>=ROUNDDOWN(PopisPredavanja[VRIJEME POČETKA],10))*($B42<=PopisPredavanja[VRIJEME ZAVRŠETKA]),PopisPredavanja[JEDINSTVENO]),PopisPredavanja[JEDINSTVENO],0),2),0)","v":0}]
[null,"17:45:00",{"$f":"IFERROR(INDEX(PopisPredavanja[],MATCH(SUMPRODUCT((PopisPredavanja[DAN]=Raspored_sati[[#Headers],[NEDJELJA]])*(ROUNDDOWN($B43,10)>=ROUNDDOWN(PopisPredavanja[VRIJEME POČETKA],10))*($B43<=PopisPredavanja[VRIJEME ZAVRŠETKA]),PopisPredavanja[JEDINSTVENO]),PopisPredavanja[JEDINSTVENO],0),2),0)","v":0},{"$f":"IFERROR(INDEX(PopisPredavanja[],MATCH(SUMPRODUCT((PopisPredavanja[DAN]=Raspored_sati[[#Headers],[PONEDJELJAK]])*(ROUNDDOWN($B43,10)>=ROUNDDOWN(PopisPredavanja[VRIJEME POČETKA],10))*($B43<=PopisPredavanja[VRIJEME ZAVRŠETKA]),PopisPredavanja[JEDINSTVENO]),PopisPredavanja[JEDINSTVENO],0),2),0)","v":0},{"$f":"IFERROR(INDEX(PopisPredavanja[],MATCH(SUMPRODUCT((PopisPredavanja[DAN]=Raspored_sati[[#Headers],[UTORAK]])*(ROUNDDOWN($B43,10)>=ROUNDDOWN(PopisPredavanja[VRIJEME POČETKA],10))*($B43<=PopisPredavanja[VRIJEME ZAVRŠETKA]),PopisPredavanja[JEDINSTVENO]),PopisPredavanja[JEDINSTVENO],0),2),0)","v":0},{"$f":"IFERROR(INDEX(PopisPredavanja[],MATCH(SUMPRODUCT((PopisPredavanja[DAN]=Raspored_sati[[#Headers],[SRIJEDA]])*(ROUNDDOWN($B43,10)>=ROUNDDOWN(PopisPredavanja[VRIJEME POČETKA],10))*($B43<=PopisPredavanja[VRIJEME ZAVRŠETKA]),PopisPredavanja[JEDINSTVENO]),PopisPredavanja[JEDINSTVENO],0),2),0)","v":0},{"$f":"IFERROR(INDEX(PopisPredavanja[],MATCH(SUMPRODUCT((PopisPredavanja[DAN]=Raspored_sati[[#Headers],[ČETVRTAK]])*(ROUNDDOWN($B43,10)>=ROUNDDOWN(PopisPredavanja[VRIJEME POČETKA],10))*($B43<=PopisPredavanja[VRIJEME ZAVRŠETKA]),PopisPredavanja[JEDINSTVENO]),PopisPredavanja[JEDINSTVENO],0),2),0)","v":0},{"$f":"IFERROR(INDEX(PopisPredavanja[],MATCH(SUMPRODUCT((PopisPredavanja[DAN]=Raspored_sati[[#Headers],[PETAK]])*(ROUNDDOWN($B43,10)>=ROUNDDOWN(PopisPredavanja[VRIJEME POČETKA],10))*($B43<=PopisPredavanja[VRIJEME ZAVRŠETKA]),PopisPredavanja[JEDINSTVENO]),PopisPredavanja[JEDINSTVENO],0),2),0)","v":0},{"$f":"IFERROR(INDEX(PopisPredavanja[],MATCH(SUMPRODUCT((PopisPredavanja[DAN]=Raspored_sati[[#Headers],[SUBOTA]])*(ROUNDDOWN($B43,10)>=ROUNDDOWN(PopisPredavanja[VRIJEME POČETKA],10))*($B43<=PopisPredavanja[VRIJEME ZAVRŠETKA]),PopisPredavanja[JEDINSTVENO]),PopisPredavanja[JEDINSTVENO],0),2),0)","v":0}]
[null,"18:00:00",{"$f":"IFERROR(INDEX(PopisPredavanja[],MATCH(SUMPRODUCT((PopisPredavanja[DAN]=Raspored_sati[[#Headers],[NEDJELJA]])*(ROUNDDOWN($B44,10)>=ROUNDDOWN(PopisPredavanja[VRIJEME POČETKA],10))*($B44<=PopisPredavanja[VRIJEME ZAVRŠETKA]),PopisPredavanja[JEDINSTVENO]),PopisPredavanja[JEDINSTVENO],0),2),0)","v":0},{"$f":"IFERROR(INDEX(PopisPredavanja[],MATCH(SUMPRODUCT((PopisPredavanja[DAN]=Raspored_sati[[#Headers],[PONEDJELJAK]])*(ROUNDDOWN($B44,10)>=ROUNDDOWN(PopisPredavanja[VRIJEME POČETKA],10))*($B44<=PopisPredavanja[VRIJEME ZAVRŠETKA]),PopisPredavanja[JEDINSTVENO]),PopisPredavanja[JEDINSTVENO],0),2),0)","v":0},{"$f":"IFERROR(INDEX(PopisPredavanja[],MATCH(SUMPRODUCT((PopisPredavanja[DAN]=Raspored_sati[[#Headers],[UTORAK]])*(ROUNDDOWN($B44,10)>=ROUNDDOWN(PopisPredavanja[VRIJEME POČETKA],10))*($B44<=PopisPredavanja[VRIJEME ZAVRŠETKA]),PopisPredavanja[JEDINSTVENO]),PopisPredavanja[JEDINSTVENO],0),2),0)","v":0},{"$f":"IFERROR(INDEX(PopisPredavanja[],MATCH(SUMPRODUCT((PopisPredavanja[DAN]=Raspored_sati[[#Headers],[SRIJEDA]])*(ROUNDDOWN($B44,10)>=ROUNDDOWN(PopisPredavanja[VRIJEME POČETKA],10))*($B44<=PopisPredavanja[VRIJEME ZAVRŠETKA]),PopisPredavanja[JEDINSTVENO]),PopisPredavanja[JEDINSTVENO],0),2),0)","v":0},{"$f":"IFERROR(INDEX(PopisPredavanja[],MATCH(SUMPRODUCT((PopisPredavanja[DAN]=Raspored_sati[[#Headers],[ČETVRTAK]])*(ROUNDDOWN($B44,10)>=ROUNDDOWN(PopisPredavanja[VRIJEME POČETKA],10))*($B44<=PopisPredavanja[VRIJEME ZAVRŠETKA]),PopisPredavanja[JEDINSTVENO]),PopisPredavanja[JEDINSTVENO],0),2),0)","v":0},{"$f":"IFERROR(INDEX(PopisPredavanja[],MATCH(SUMPRODUCT((PopisPredavanja[DAN]=Raspored_sati[[#Headers],[PETAK]])*(ROUNDDOWN($B44,10)>=ROUNDDOWN(PopisPredavanja[VRIJEME POČETKA],10))*($B44<=PopisPredavanja[VRIJEME ZAVRŠETKA]),PopisPredavanja[JEDINSTVENO]),PopisPredavanja[JEDINSTVENO],0),2),0)","v":0},{"$f":"IFERROR(INDEX(PopisPredavanja[],MATCH(SUMPRODUCT((PopisPredavanja[DAN]=Raspored_sati[[#Headers],[SUBOTA]])*(ROUNDDOWN($B44,10)>=ROUNDDOWN(PopisPredavanja[VRIJEME POČETKA],10))*($B44<=PopisPredavanja[VRIJEME ZAVRŠETKA]),PopisPredavanja[JEDINSTVENO]),PopisPredavanja[JEDINSTVENO],0),2),0)","v":0}]
[null,"18:15:00",{"$f":"IFERROR(INDEX(PopisPredavanja[],MATCH(SUMPRODUCT((PopisPredavanja[DAN]=Raspored_sati[[#Headers],[NEDJELJA]])*(ROUNDDOWN($B45,10)>=ROUNDDOWN(PopisPredavanja[VRIJEME POČETKA],10))*($B45<=PopisPredavanja[VRIJEME ZAVRŠETKA]),PopisPredavanja[JEDINSTVENO]),PopisPredavanja[JEDINSTVENO],0),2),0)","v":0},{"$f":"IFERROR(INDEX(PopisPredavanja[],MATCH(SUMPRODUCT((PopisPredavanja[DAN]=Raspored_sati[[#Headers],[PONEDJELJAK]])*(ROUNDDOWN($B45,10)>=ROUNDDOWN(PopisPredavanja[VRIJEME POČETKA],10))*($B45<=PopisPredavanja[VRIJEME ZAVRŠETKA]),PopisPredavanja[JEDINSTVENO]),PopisPredavanja[JEDINSTVENO],0),2),0)","v":0},{"$f":"IFERROR(INDEX(PopisPredavanja[],MATCH(SUMPRODUCT((PopisPredavanja[DAN]=Raspored_sati[[#Headers],[UTORAK]])*(ROUNDDOWN($B45,10)>=ROUNDDOWN(PopisPredavanja[VRIJEME POČETKA],10))*($B45<=PopisPredavanja[VRIJEME ZAVRŠETKA]),PopisPredavanja[JEDINSTVENO]),PopisPredavanja[JEDINSTVENO],0),2),0)","v":0},{"$f":"IFERROR(INDEX(PopisPredavanja[],MATCH(SUMPRODUCT((PopisPredavanja[DAN]=Raspored_sati[[#Headers],[SRIJEDA]])*(ROUNDDOWN($B45,10)>=ROUNDDOWN(PopisPredavanja[VRIJEME POČETKA],10))*($B45<=PopisPredavanja[VRIJEME ZAVRŠETKA]),PopisPredavanja[JEDINSTVENO]),PopisPredavanja[JEDINSTVENO],0),2),0)","v":0},{"$f":"IFERROR(INDEX(PopisPredavanja[],MATCH(SUMPRODUCT((PopisPredavanja[DAN]=Raspored_sati[[#Headers],[ČETVRTAK]])*(ROUNDDOWN($B45,10)>=ROUNDDOWN(PopisPredavanja[VRIJEME POČETKA],10))*($B45<=PopisPredavanja[VRIJEME ZAVRŠETKA]),PopisPredavanja[JEDINSTVENO]),PopisPredavanja[JEDINSTVENO],0),2),0)","v":0},{"$f":"IFERROR(INDEX(PopisPredavanja[],MATCH(SUMPRODUCT((PopisPredavanja[DAN]=Raspored_sati[[#Headers],[PETAK]])*(ROUNDDOWN($B45,10)>=ROUNDDOWN(PopisPredavanja[VRIJEME POČETKA],10))*($B45<=PopisPredavanja[VRIJEME ZAVRŠETKA]),PopisPredavanja[JEDINSTVENO]),PopisPredavanja[JEDINSTVENO],0),2),0)","v":0},{"$f":"IFERROR(INDEX(PopisPredavanja[],MATCH(SUMPRODUCT((PopisPredavanja[DAN]=Raspored_sati[[#Headers],[SUBOTA]])*(ROUNDDOWN($B45,10)>=ROUNDDOWN(PopisPredavanja[VRIJEME POČETKA],10))*($B45<=PopisPredavanja[VRIJEME ZAVRŠETKA]),PopisPredavanja[JEDINSTVENO]),PopisPredavanja[JEDINSTVENO],0),2),0)","v":0}]
[null,"18:30:00",{"$f":"IFERROR(INDEX(PopisPredavanja[],MATCH(SUMPRODUCT((PopisPredavanja[DAN]=Raspored_sati[[#Headers],[NEDJELJA]])*(ROUNDDOWN($B46,10)>=ROUNDDOWN(PopisPredavanja[VRIJEME POČETKA],10))*($B46<=PopisPredavanja[VRIJEME ZAVRŠETKA]),PopisPredavanja[JEDINSTVENO]),PopisPredavanja[JEDINSTVENO],0),2),0)","v":0},{"$f":"IFERROR(INDEX(PopisPredavanja[],MATCH(SUMPRODUCT((PopisPredavanja[DAN]=Raspored_sati[[#Headers],[PONEDJELJAK]])*(ROUNDDOWN($B46,10)>=ROUNDDOWN(PopisPredavanja[VRIJEME POČETKA],10))*($B46<=PopisPredavanja[VRIJEME ZAVRŠETKA]),PopisPredavanja[JEDINSTVENO]),PopisPredavanja[JEDINSTVENO],0),2),0)","v":0},{"$f":"IFERROR(INDEX(PopisPredavanja[],MATCH(SUMPRODUCT((PopisPredavanja[DAN]=Raspored_sati[[#Headers],[UTORAK]])*(ROUNDDOWN($B46,10)>=ROUNDDOWN(PopisPredavanja[VRIJEME POČETKA],10))*($B46<=PopisPredavanja[VRIJEME ZAVRŠETKA]),PopisPredavanja[JEDINSTVENO]),PopisPredavanja[JEDINSTVENO],0),2),0)","v":0},{"$f":"IFERROR(INDEX(PopisPredavanja[],MATCH(SUMPRODUCT((PopisPredavanja[DAN]=Raspored_sati[[#Headers],[SRIJEDA]])*(ROUNDDOWN($B46,10)>=ROUNDDOWN(PopisPredavanja[VRIJEME POČETKA],10))*($B46<=PopisPredavanja[VRIJEME ZAVRŠETKA]),PopisPredavanja[JEDINSTVENO]),PopisPredavanja[JEDINSTVENO],0),2),0)","v":0},{"$f":"IFERROR(INDEX(PopisPredavanja[],MATCH(SUMPRODUCT((PopisPredavanja[DAN]=Raspored_sati[[#Headers],[ČETVRTAK]])*(ROUNDDOWN($B46,10)>=ROUNDDOWN(PopisPredavanja[VRIJEME POČETKA],10))*($B46<=PopisPredavanja[VRIJEME ZAVRŠETKA]),PopisPredavanja[JEDINSTVENO]),PopisPredavanja[JEDINSTVENO],0),2),0)","v":0},{"$f":"IFERROR(INDEX(PopisPredavanja[],MATCH(SUMPRODUCT((PopisPredavanja[DAN]=Raspored_sati[[#Headers],[PETAK]])*(ROUNDDOWN($B46,10)>=ROUNDDOWN(PopisPredavanja[VRIJEME POČETKA],10))*($B46<=PopisPredavanja[VRIJEME ZAVRŠETKA]),PopisPredavanja[JEDINSTVENO]),PopisPredavanja[JEDINSTVENO],0),2),0)","v":0},{"$f":"IFERROR(INDEX(PopisPredavanja[],MATCH(SUMPRODUCT((PopisPredavanja[DAN]=Raspored_sati[[#Headers],[SUBOTA]])*(ROUNDDOWN($B46,10)>=ROUNDDOWN(PopisPredavanja[VRIJEME POČETKA],10))*($B46<=PopisPredavanja[VRIJEME ZAVRŠETKA]),PopisPredavanja[JEDINSTVENO]),PopisPredavanja[JEDINSTVENO],0),2),0)","v":0}]
[null,"18:45:00",{"$f":"IFERROR(INDEX(PopisPredavanja[],MATCH(SUMPRODUCT((PopisPredavanja[DAN]=Raspored_sati[[#Headers],[NEDJELJA]])*(ROUNDDOWN($B47,10)>=ROUNDDOWN(PopisPredavanja[VRIJEME POČETKA],10))*($B47<=PopisPredavanja[VRIJEME ZAVRŠETKA]),PopisPredavanja[JEDINSTVENO]),PopisPredavanja[JEDINSTVENO],0),2),0)","v":0},{"$f":"IFERROR(INDEX(PopisPredavanja[],MATCH(SUMPRODUCT((PopisPredavanja[DAN]=Raspored_sati[[#Headers],[PONEDJELJAK]])*(ROUNDDOWN($B47,10)>=ROUNDDOWN(PopisPredavanja[VRIJEME POČETKA],10))*($B47<=PopisPredavanja[VRIJEME ZAVRŠETKA]),PopisPredavanja[JEDINSTVENO]),PopisPredavanja[JEDINSTVENO],0),2),0)","v":0},{"$f":"IFERROR(INDEX(PopisPredavanja[],MATCH(SUMPRODUCT((PopisPredavanja[DAN]=Raspored_sati[[#Headers],[UTORAK]])*(ROUNDDOWN($B47,10)>=ROUNDDOWN(PopisPredavanja[VRIJEME POČETKA],10))*($B47<=PopisPredavanja[VRIJEME ZAVRŠETKA]),PopisPredavanja[JEDINSTVENO]),PopisPredavanja[JEDINSTVENO],0),2),0)","v":0},{"$f":"IFERROR(INDEX(PopisPredavanja[],MATCH(SUMPRODUCT((PopisPredavanja[DAN]=Raspored_sati[[#Headers],[SRIJEDA]])*(ROUNDDOWN($B47,10)>=ROUNDDOWN(PopisPredavanja[VRIJEME POČETKA],10))*($B47<=PopisPredavanja[VRIJEME ZAVRŠETKA]),PopisPredavanja[JEDINSTVENO]),PopisPredavanja[JEDINSTVENO],0),2),0)","v":0},{"$f":"IFERROR(INDEX(PopisPredavanja[],MATCH(SUMPRODUCT((PopisPredavanja[DAN]=Raspored_sati[[#Headers],[ČETVRTAK]])*(ROUNDDOWN($B47,10)>=ROUNDDOWN(PopisPredavanja[VRIJEME POČETKA],10))*($B47<=PopisPredavanja[VRIJEME ZAVRŠETKA]),PopisPredavanja[JEDINSTVENO]),PopisPredavanja[JEDINSTVENO],0),2),0)","v":0},{"$f":"IFERROR(INDEX(PopisPredavanja[],MATCH(SUMPRODUCT((PopisPredavanja[DAN]=Raspored_sati[[#Headers],[PETAK]])*(ROUNDDOWN($B47,10)>=ROUNDDOWN(PopisPredavanja[VRIJEME POČETKA],10))*($B47<=PopisPredavanja[VRIJEME ZAVRŠETKA]),PopisPredavanja[JEDINSTVENO]),PopisPredavanja[JEDINSTVENO],0),2),0)","v":0},{"$f":"IFERROR(INDEX(PopisPredavanja[],MATCH(SUMPRODUCT((PopisPredavanja[DAN]=Raspored_sati[[#Headers],[SUBOTA]])*(ROUNDDOWN($B47,10)>=ROUNDDOWN(PopisPredavanja[VRIJEME POČETKA],10))*($B47<=PopisPredavanja[VRIJEME ZAVRŠETKA]),PopisPredavanja[JEDINSTVENO]),PopisPredavanja[JEDINSTVENO],0),2),0)","v":0}]
[null,"19:00:00",{"$f":"IFERROR(INDEX(PopisPredavanja[],MATCH(SUMPRODUCT((PopisPredavanja[DAN]=Raspored_sati[[#Headers],[NEDJELJA]])*(ROUNDDOWN($B48,10)>=ROUNDDOWN(PopisPredavanja[VRIJEME POČETKA],10))*($B48<=PopisPredavanja[VRIJEME ZAVRŠETKA]),PopisPredavanja[JEDINSTVENO]),PopisPredavanja[JEDINSTVENO],0),2),0)","v":0},{"$f":"IFERROR(INDEX(PopisPredavanja[],MATCH(SUMPRODUCT((PopisPredavanja[DAN]=Raspored_sati[[#Headers],[PONEDJELJAK]])*(ROUNDDOWN($B48,10)>=ROUNDDOWN(PopisPredavanja[VRIJEME POČETKA],10))*($B48<=PopisPredavanja[VRIJEME ZAVRŠETKA]),PopisPredavanja[JEDINSTVENO]),PopisPredavanja[JEDINSTVENO],0),2),0)","v":0},{"$f":"IFERROR(INDEX(PopisPredavanja[],MATCH(SUMPRODUCT((PopisPredavanja[DAN]=Raspored_sati[[#Headers],[UTORAK]])*(ROUNDDOWN($B48,10)>=ROUNDDOWN(PopisPredavanja[VRIJEME POČETKA],10))*($B48<=PopisPredavanja[VRIJEME ZAVRŠETKA]),PopisPredavanja[JEDINSTVENO]),PopisPredavanja[JEDINSTVENO],0),2),0)","v":0},{"$f":"IFERROR(INDEX(PopisPredavanja[],MATCH(SUMPRODUCT((PopisPredavanja[DAN]=Raspored_sati[[#Headers],[SRIJEDA]])*(ROUNDDOWN($B48,10)>=ROUNDDOWN(PopisPredavanja[VRIJEME POČETKA],10))*($B48<=PopisPredavanja[VRIJEME ZAVRŠETKA]),PopisPredavanja[JEDINSTVENO]),PopisPredavanja[JEDINSTVENO],0),2),0)","v":0},{"$f":"IFERROR(INDEX(PopisPredavanja[],MATCH(SUMPRODUCT((PopisPredavanja[DAN]=Raspored_sati[[#Headers],[ČETVRTAK]])*(ROUNDDOWN($B48,10)>=ROUNDDOWN(PopisPredavanja[VRIJEME POČETKA],10))*($B48<=PopisPredavanja[VRIJEME ZAVRŠETKA]),PopisPredavanja[JEDINSTVENO]),PopisPredavanja[JEDINSTVENO],0),2),0)","v":0},{"$f":"IFERROR(INDEX(PopisPredavanja[],MATCH(SUMPRODUCT((PopisPredavanja[DAN]=Raspored_sati[[#Headers],[PETAK]])*(ROUNDDOWN($B48,10)>=ROUNDDOWN(PopisPredavanja[VRIJEME POČETKA],10))*($B48<=PopisPredavanja[VRIJEME ZAVRŠETKA]),PopisPredavanja[JEDINSTVENO]),PopisPredavanja[JEDINSTVENO],0),2),0)","v":0},{"$f":"IFERROR(INDEX(PopisPredavanja[],MATCH(SUMPRODUCT((PopisPredavanja[DAN]=Raspored_sati[[#Headers],[SUBOTA]])*(ROUNDDOWN($B48,10)>=ROUNDDOWN(PopisPredavanja[VRIJEME POČETKA],10))*($B48<=PopisPredavanja[VRIJEME ZAVRŠETKA]),PopisPredavanja[JEDINSTVENO]),PopisPredavanja[JEDINSTVENO],0),2),0)","v":0}]
[null,"19:15:00",{"$f":"IFERROR(INDEX(PopisPredavanja[],MATCH(SUMPRODUCT((PopisPredavanja[DAN]=Raspored_sati[[#Headers],[NEDJELJA]])*(ROUNDDOWN($B49,10)>=ROUNDDOWN(PopisPredavanja[VRIJEME POČETKA],10))*($B49<=PopisPredavanja[VRIJEME ZAVRŠETKA]),PopisPredavanja[JEDINSTVENO]),PopisPredavanja[JEDINSTVENO],0),2),0)","v":0},{"$f":"IFERROR(INDEX(PopisPredavanja[],MATCH(SUMPRODUCT((PopisPredavanja[DAN]=Raspored_sati[[#Headers],[PONEDJELJAK]])*(ROUNDDOWN($B49,10)>=ROUNDDOWN(PopisPredavanja[VRIJEME POČETKA],10))*($B49<=PopisPredavanja[VRIJEME ZAVRŠETKA]),PopisPredavanja[JEDINSTVENO]),PopisPredavanja[JEDINSTVENO],0),2),0)","v":0},{"$f":"IFERROR(INDEX(PopisPredavanja[],MATCH(SUMPRODUCT((PopisPredavanja[DAN]=Raspored_sati[[#Headers],[UTORAK]])*(ROUNDDOWN($B49,10)>=ROUNDDOWN(PopisPredavanja[VRIJEME POČETKA],10))*($B49<=PopisPredavanja[VRIJEME ZAVRŠETKA]),PopisPredavanja[JEDINSTVENO]),PopisPredavanja[JEDINSTVENO],0),2),0)","v":0},{"$f":"IFERROR(INDEX(PopisPredavanja[],MATCH(SUMPRODUCT((PopisPredavanja[DAN]=Raspored_sati[[#Headers],[SRIJEDA]])*(ROUNDDOWN($B49,10)>=ROUNDDOWN(PopisPredavanja[VRIJEME POČETKA],10))*($B49<=PopisPredavanja[VRIJEME ZAVRŠETKA]),PopisPredavanja[JEDINSTVENO]),PopisPredavanja[JEDINSTVENO],0),2),0)","v":0},{"$f":"IFERROR(INDEX(PopisPredavanja[],MATCH(SUMPRODUCT((PopisPredavanja[DAN]=Raspored_sati[[#Headers],[ČETVRTAK]])*(ROUNDDOWN($B49,10)>=ROUNDDOWN(PopisPredavanja[VRIJEME POČETKA],10))*($B49<=PopisPredavanja[VRIJEME ZAVRŠETKA]),PopisPredavanja[JEDINSTVENO]),PopisPredavanja[JEDINSTVENO],0),2),0)","v":0},{"$f":"IFERROR(INDEX(PopisPredavanja[],MATCH(SUMPRODUCT((PopisPredavanja[DAN]=Raspored_sati[[#Headers],[PETAK]])*(ROUNDDOWN($B49,10)>=ROUNDDOWN(PopisPredavanja[VRIJEME POČETKA],10))*($B49<=PopisPredavanja[VRIJEME ZAVRŠETKA]),PopisPredavanja[JEDINSTVENO]),PopisPredavanja[JEDINSTVENO],0),2),0)","v":0},{"$f":"IFERROR(INDEX(PopisPredavanja[],MATCH(SUMPRODUCT((PopisPredavanja[DAN]=Raspored_sati[[#Headers],[SUBOTA]])*(ROUNDDOWN($B49,10)>=ROUNDDOWN(PopisPredavanja[VRIJEME POČETKA],10))*($B49<=PopisPredavanja[VRIJEME ZAVRŠETKA]),PopisPredavanja[JEDINSTVENO]),PopisPredavanja[JEDINSTVENO],0),2),0)","v":0}]
[null,"19:30:00",{"$f":"IFERROR(INDEX(PopisPredavanja[],MATCH(SUMPRODUCT((PopisPredavanja[DAN]=Raspored_sati[[#Headers],[NEDJELJA]])*(ROUNDDOWN($B50,10)>=ROUNDDOWN(PopisPredavanja[VRIJEME POČETKA],10))*($B50<=PopisPredavanja[VRIJEME ZAVRŠETKA]),PopisPredavanja[JEDINSTVENO]),PopisPredavanja[JEDINSTVENO],0),2),0)","v":0},{"$f":"IFERROR(INDEX(PopisPredavanja[],MATCH(SUMPRODUCT((PopisPredavanja[DAN]=Raspored_sati[[#Headers],[PONEDJELJAK]])*(ROUNDDOWN($B50,10)>=ROUNDDOWN(PopisPredavanja[VRIJEME POČETKA],10))*($B50<=PopisPredavanja[VRIJEME ZAVRŠETKA]),PopisPredavanja[JEDINSTVENO]),PopisPredavanja[JEDINSTVENO],0),2),0)","v":0},{"$f":"IFERROR(INDEX(PopisPredavanja[],MATCH(SUMPRODUCT((PopisPredavanja[DAN]=Raspored_sati[[#Headers],[UTORAK]])*(ROUNDDOWN($B50,10)>=ROUNDDOWN(PopisPredavanja[VRIJEME POČETKA],10))*($B50<=PopisPredavanja[VRIJEME ZAVRŠETKA]),PopisPredavanja[JEDINSTVENO]),PopisPredavanja[JEDINSTVENO],0),2),0)","v":0},{"$f":"IFERROR(INDEX(PopisPredavanja[],MATCH(SUMPRODUCT((PopisPredavanja[DAN]=Raspored_sati[[#Headers],[SRIJEDA]])*(ROUNDDOWN($B50,10)>=ROUNDDOWN(PopisPredavanja[VRIJEME POČETKA],10))*($B50<=PopisPredavanja[VRIJEME ZAVRŠETKA]),PopisPredavanja[JEDINSTVENO]),PopisPredavanja[JEDINSTVENO],0),2),0)","v":0},{"$f":"IFERROR(INDEX(PopisPredavanja[],MATCH(SUMPRODUCT((PopisPredavanja[DAN]=Raspored_sati[[#Headers],[ČETVRTAK]])*(ROUNDDOWN($B50,10)>=ROUNDDOWN(PopisPredavanja[VRIJEME POČETKA],10))*($B50<=PopisPredavanja[VRIJEME ZAVRŠETKA]),PopisPredavanja[JEDINSTVENO]),PopisPredavanja[JEDINSTVENO],0),2),0)","v":0},{"$f":"IFERROR(INDEX(PopisPredavanja[],MATCH(SUMPRODUCT((PopisPredavanja[DAN]=Raspored_sati[[#Headers],[PETAK]])*(ROUNDDOWN($B50,10)>=ROUNDDOWN(PopisPredavanja[VRIJEME POČETKA],10))*($B50<=PopisPredavanja[VRIJEME ZAVRŠETKA]),PopisPredavanja[JEDINSTVENO]),PopisPredavanja[JEDINSTVENO],0),2),0)","v":0},{"$f":"IFERROR(INDEX(PopisPredavanja[],MATCH(SUMPRODUCT((PopisPredavanja[DAN]=Raspored_sati[[#Headers],[SUBOTA]])*(ROUNDDOWN($B50,10)>=ROUNDDOWN(PopisPredavanja[VRIJEME POČETKA],10))*($B50<=PopisPredavanja[VRIJEME ZAVRŠETKA]),PopisPredavanja[JEDINSTVENO]),PopisPredavanja[JEDINSTVENO],0),2),0)","v":0}]
[null,"19:45:00",{"$f":"IFERROR(INDEX(PopisPredavanja[],MATCH(SUMPRODUCT((PopisPredavanja[DAN]=Raspored_sati[[#Headers],[NEDJELJA]])*(ROUNDDOWN($B51,10)>=ROUNDDOWN(PopisPredavanja[VRIJEME POČETKA],10))*($B51<=PopisPredavanja[VRIJEME ZAVRŠETKA]),PopisPredavanja[JEDINSTVENO]),PopisPredavanja[JEDINSTVENO],0),2),0)","v":0},{"$f":"IFERROR(INDEX(PopisPredavanja[],MATCH(SUMPRODUCT((PopisPredavanja[DAN]=Raspored_sati[[#Headers],[PONEDJELJAK]])*(ROUNDDOWN($B51,10)>=ROUNDDOWN(PopisPredavanja[VRIJEME POČETKA],10))*($B51<=PopisPredavanja[VRIJEME ZAVRŠETKA]),PopisPredavanja[JEDINSTVENO]),PopisPredavanja[JEDINSTVENO],0),2),0)","v":0},{"$f":"IFERROR(INDEX(PopisPredavanja[],MATCH(SUMPRODUCT((PopisPredavanja[DAN]=Raspored_sati[[#Headers],[UTORAK]])*(ROUNDDOWN($B51,10)>=ROUNDDOWN(PopisPredavanja[VRIJEME POČETKA],10))*($B51<=PopisPredavanja[VRIJEME ZAVRŠETKA]),PopisPredavanja[JEDINSTVENO]),PopisPredavanja[JEDINSTVENO],0),2),0)","v":0},{"$f":"IFERROR(INDEX(PopisPredavanja[],MATCH(SUMPRODUCT((PopisPredavanja[DAN]=Raspored_sati[[#Headers],[SRIJEDA]])*(ROUNDDOWN($B51,10)>=ROUNDDOWN(PopisPredavanja[VRIJEME POČETKA],10))*($B51<=PopisPredavanja[VRIJEME ZAVRŠETKA]),PopisPredavanja[JEDINSTVENO]),PopisPredavanja[JEDINSTVENO],0),2),0)","v":0},{"$f":"IFERROR(INDEX(PopisPredavanja[],MATCH(SUMPRODUCT((PopisPredavanja[DAN]=Raspored_sati[[#Headers],[ČETVRTAK]])*(ROUNDDOWN($B51,10)>=ROUNDDOWN(PopisPredavanja[VRIJEME POČETKA],10))*($B51<=PopisPredavanja[VRIJEME ZAVRŠETKA]),PopisPredavanja[JEDINSTVENO]),PopisPredavanja[JEDINSTVENO],0),2),0)","v":0},{"$f":"IFERROR(INDEX(PopisPredavanja[],MATCH(SUMPRODUCT((PopisPredavanja[DAN]=Raspored_sati[[#Headers],[PETAK]])*(ROUNDDOWN($B51,10)>=ROUNDDOWN(PopisPredavanja[VRIJEME POČETKA],10))*($B51<=PopisPredavanja[VRIJEME ZAVRŠETKA]),PopisPredavanja[JEDINSTVENO]),PopisPredavanja[JEDINSTVENO],0),2),0)","v":0},{"$f":"IFERROR(INDEX(PopisPredavanja[],MATCH(SUMPRODUCT((PopisPredavanja[DAN]=Raspored_sati[[#Headers],[SUBOTA]])*(ROUNDDOWN($B51,10)>=ROUNDDOWN(PopisPredavanja[VRIJEME POČETKA],10))*($B51<=PopisPredavanja[VRIJEME ZAVRŠETKA]),PopisPredavanja[JEDINSTVENO]),PopisPredavanja[JEDINSTVENO],0),2),0)","v":0}]
[null,"20:00:00",{"$f":"IFERROR(INDEX(PopisPredavanja[],MATCH(SUMPRODUCT((PopisPredavanja[DAN]=Raspored_sati[[#Headers],[NEDJELJA]])*(ROUNDDOWN($B52,10)>=ROUNDDOWN(PopisPredavanja[VRIJEME POČETKA],10))*($B52<=PopisPredavanja[VRIJEME ZAVRŠETKA]),PopisPredavanja[JEDINSTVENO]),PopisPredavanja[JEDINSTVENO],0),2),0)","v":0},{"$f":"IFERROR(INDEX(PopisPredavanja[],MATCH(SUMPRODUCT((PopisPredavanja[DAN]=Raspored_sati[[#Headers],[PONEDJELJAK]])*(ROUNDDOWN($B52,10)>=ROUNDDOWN(PopisPredavanja[VRIJEME POČETKA],10))*($B52<=PopisPredavanja[VRIJEME ZAVRŠETKA]),PopisPredavanja[JEDINSTVENO]),PopisPredavanja[JEDINSTVENO],0),2),0)","v":0},{"$f":"IFERROR(INDEX(PopisPredavanja[],MATCH(SUMPRODUCT((PopisPredavanja[DAN]=Raspored_sati[[#Headers],[UTORAK]])*(ROUNDDOWN($B52,10)>=ROUNDDOWN(PopisPredavanja[VRIJEME POČETKA],10))*($B52<=PopisPredavanja[VRIJEME ZAVRŠETKA]),PopisPredavanja[JEDINSTVENO]),PopisPredavanja[JEDINSTVENO],0),2),0)","v":0},{"$f":"IFERROR(INDEX(PopisPredavanja[],MATCH(SUMPRODUCT((PopisPredavanja[DAN]=Raspored_sati[[#Headers],[SRIJEDA]])*(ROUNDDOWN($B52,10)>=ROUNDDOWN(PopisPredavanja[VRIJEME POČETKA],10))*($B52<=PopisPredavanja[VRIJEME ZAVRŠETKA]),PopisPredavanja[JEDINSTVENO]),PopisPredavanja[JEDINSTVENO],0),2),0)","v":0},{"$f":"IFERROR(INDEX(PopisPredavanja[],MATCH(SUMPRODUCT((PopisPredavanja[DAN]=Raspored_sati[[#Headers],[ČETVRTAK]])*(ROUNDDOWN($B52,10)>=ROUNDDOWN(PopisPredavanja[VRIJEME POČETKA],10))*($B52<=PopisPredavanja[VRIJEME ZAVRŠETKA]),PopisPredavanja[JEDINSTVENO]),PopisPredavanja[JEDINSTVENO],0),2),0)","v":0},{"$f":"IFERROR(INDEX(PopisPredavanja[],MATCH(SUMPRODUCT((PopisPredavanja[DAN]=Raspored_sati[[#Headers],[PETAK]])*(ROUNDDOWN($B52,10)>=ROUNDDOWN(PopisPredavanja[VRIJEME POČETKA],10))*($B52<=PopisPredavanja[VRIJEME ZAVRŠETKA]),PopisPredavanja[JEDINSTVENO]),PopisPredavanja[JEDINSTVENO],0),2),0)","v":0},{"$f":"IFERROR(INDEX(PopisPredavanja[],MATCH(SUMPRODUCT((PopisPredavanja[DAN]=Raspored_sati[[#Headers],[SUBOTA]])*(ROUNDDOWN($B52,10)>=ROUNDDOWN(PopisPredavanja[VRIJEME POČETKA],10))*($B52<=PopisPredavanja[VRIJEME ZAVRŠETKA]),PopisPredavanja[JEDINSTVENO]),PopisPredavanja[JEDINSTVENO],0),2),0)","v":0}]
[null,"20:15:00",{"$f":"IFERROR(INDEX(PopisPredavanja[],MATCH(SUMPRODUCT((PopisPredavanja[DAN]=Raspored_sati[[#Headers],[NEDJELJA]])*(ROUNDDOWN($B53,10)>=ROUNDDOWN(PopisPredavanja[VRIJEME POČETKA],10))*($B53<=PopisPredavanja[VRIJEME ZAVRŠETKA]),PopisPredavanja[JEDINSTVENO]),PopisPredavanja[JEDINSTVENO],0),2),0)","v":0},{"$f":"IFERROR(INDEX(PopisPredavanja[],MATCH(SUMPRODUCT((PopisPredavanja[DAN]=Raspored_sati[[#Headers],[PONEDJELJAK]])*(ROUNDDOWN($B53,10)>=ROUNDDOWN(PopisPredavanja[VRIJEME POČETKA],10))*($B53<=PopisPredavanja[VRIJEME ZAVRŠETKA]),PopisPredavanja[JEDINSTVENO]),PopisPredavanja[JEDINSTVENO],0),2),0)","v":0},{"$f":"IFERROR(INDEX(PopisPredavanja[],MATCH(SUMPRODUCT((PopisPredavanja[DAN]=Raspored_sati[[#Headers],[UTORAK]])*(ROUNDDOWN($B53,10)>=ROUNDDOWN(PopisPredavanja[VRIJEME POČETKA],10))*($B53<=PopisPredavanja[VRIJEME ZAVRŠETKA]),PopisPredavanja[JEDINSTVENO]),PopisPredavanja[JEDINSTVENO],0),2),0)","v":0},{"$f":"IFERROR(INDEX(PopisPredavanja[],MATCH(SUMPRODUCT((PopisPredavanja[DAN]=Raspored_sati[[#Headers],[SRIJEDA]])*(ROUNDDOWN($B53,10)>=ROUNDDOWN(PopisPredavanja[VRIJEME POČETKA],10))*($B53<=PopisPredavanja[VRIJEME ZAVRŠETKA]),PopisPredavanja[JEDINSTVENO]),PopisPredavanja[JEDINSTVENO],0),2),0)","v":0},{"$f":"IFERROR(INDEX(PopisPredavanja[],MATCH(SUMPRODUCT((PopisPredavanja[DAN]=Raspored_sati[[#Headers],[ČETVRTAK]])*(ROUNDDOWN($B53,10)>=ROUNDDOWN(PopisPredavanja[VRIJEME POČETKA],10))*($B53<=PopisPredavanja[VRIJEME ZAVRŠETKA]),PopisPredavanja[JEDINSTVENO]),PopisPredavanja[JEDINSTVENO],0),2),0)","v":0},{"$f":"IFERROR(INDEX(PopisPredavanja[],MATCH(SUMPRODUCT((PopisPredavanja[DAN]=Raspored_sati[[#Headers],[PETAK]])*(ROUNDDOWN($B53,10)>=ROUNDDOWN(PopisPredavanja[VRIJEME POČETKA],10))*($B53<=PopisPredavanja[VRIJEME ZAVRŠETKA]),PopisPredavanja[JEDINSTVENO]),PopisPredavanja[JEDINSTVENO],0),2),0)","v":0},{"$f":"IFERROR(INDEX(PopisPredavanja[],MATCH(SUMPRODUCT((PopisPredavanja[DAN]=Raspored_sati[[#Headers],[SUBOTA]])*(ROUNDDOWN($B53,10)>=ROUNDDOWN(PopisPredavanja[VRIJEME POČETKA],10))*($B53<=PopisPredavanja[VRIJEME ZAVRŠETKA]),PopisPredavanja[JEDINSTVENO]),PopisPredavanja[JEDINSTVENO],0),2),0)","v":0}]
[null,"20:30:00",{"$f":"IFERROR(INDEX(PopisPredavanja[],MATCH(SUMPRODUCT((PopisPredavanja[DAN]=Raspored_sati[[#Headers],[NEDJELJA]])*(ROUNDDOWN($B54,10)>=ROUNDDOWN(PopisPredavanja[VRIJEME POČETKA],10))*($B54<=PopisPredavanja[VRIJEME ZAVRŠETKA]),PopisPredavanja[JEDINSTVENO]),PopisPredavanja[JEDINSTVENO],0),2),0)","v":0},{"$f":"IFERROR(INDEX(PopisPredavanja[],MATCH(SUMPRODUCT((PopisPredavanja[DAN]=Raspored_sati[[#Headers],[PONEDJELJAK]])*(ROUNDDOWN($B54,10)>=ROUNDDOWN(PopisPredavanja[VRIJEME POČETKA],10))*($B54<=PopisPredavanja[VRIJEME ZAVRŠETKA]),PopisPredavanja[JEDINSTVENO]),PopisPredavanja[JEDINSTVENO],0),2),0)","v":0},{"$f":"IFERROR(INDEX(PopisPredavanja[],MATCH(SUMPRODUCT((PopisPredavanja[DAN]=Raspored_sati[[#Headers],[UTORAK]])*(ROUNDDOWN($B54,10)>=ROUNDDOWN(PopisPredavanja[VRIJEME POČETKA],10))*($B54<=PopisPredavanja[VRIJEME ZAVRŠETKA]),PopisPredavanja[JEDINSTVENO]),PopisPredavanja[JEDINSTVENO],0),2),0)","v":0},{"$f":"IFERROR(INDEX(PopisPredavanja[],MATCH(SUMPRODUCT((PopisPredavanja[DAN]=Raspored_sati[[#Headers],[SRIJEDA]])*(ROUNDDOWN($B54,10)>=ROUNDDOWN(PopisPredavanja[VRIJEME POČETKA],10))*($B54<=PopisPredavanja[VRIJEME ZAVRŠETKA]),PopisPredavanja[JEDINSTVENO]),PopisPredavanja[JEDINSTVENO],0),2),0)","v":0},{"$f":"IFERROR(INDEX(PopisPredavanja[],MATCH(SUMPRODUCT((PopisPredavanja[DAN]=Raspored_sati[[#Headers],[ČETVRTAK]])*(ROUNDDOWN($B54,10)>=ROUNDDOWN(PopisPredavanja[VRIJEME POČETKA],10))*($B54<=PopisPredavanja[VRIJEME ZAVRŠETKA]),PopisPredavanja[JEDINSTVENO]),PopisPredavanja[JEDINSTVENO],0),2),0)","v":0},{"$f":"IFERROR(INDEX(PopisPredavanja[],MATCH(SUMPRODUCT((PopisPredavanja[DAN]=Raspored_sati[[#Headers],[PETAK]])*(ROUNDDOWN($B54,10)>=ROUNDDOWN(PopisPredavanja[VRIJEME POČETKA],10))*($B54<=PopisPredavanja[VRIJEME ZAVRŠETKA]),PopisPredavanja[JEDINSTVENO]),PopisPredavanja[JEDINSTVENO],0),2),0)","v":0},{"$f":"IFERROR(INDEX(PopisPredavanja[],MATCH(SUMPRODUCT((PopisPredavanja[DAN]=Raspored_sati[[#Headers],[SUBOTA]])*(ROUNDDOWN($B54,10)>=ROUNDDOWN(PopisPredavanja[VRIJEME POČETKA],10))*($B54<=PopisPredavanja[VRIJEME ZAVRŠETKA]),PopisPredavanja[JEDINSTVENO]),PopisPredavanja[JEDINSTVENO],0),2),0)","v":0}]
[null,"20:45:00",{"$f":"IFERROR(INDEX(PopisPredavanja[],MATCH(SUMPRODUCT((PopisPredavanja[DAN]=Raspored_sati[[#Headers],[NEDJELJA]])*(ROUNDDOWN($B55,10)>=ROUNDDOWN(PopisPredavanja[VRIJEME POČETKA],10))*($B55<=PopisPredavanja[VRIJEME ZAVRŠETKA]),PopisPredavanja[JEDINSTVENO]),PopisPredavanja[JEDINSTVENO],0),2),0)","v":0},{"$f":"IFERROR(INDEX(PopisPredavanja[],MATCH(SUMPRODUCT((PopisPredavanja[DAN]=Raspored_sati[[#Headers],[PONEDJELJAK]])*(ROUNDDOWN($B55,10)>=ROUNDDOWN(PopisPredavanja[VRIJEME POČETKA],10))*($B55<=PopisPredavanja[VRIJEME ZAVRŠETKA]),PopisPredavanja[JEDINSTVENO]),PopisPredavanja[JEDINSTVENO],0),2),0)","v":0},{"$f":"IFERROR(INDEX(PopisPredavanja[],MATCH(SUMPRODUCT((PopisPredavanja[DAN]=Raspored_sati[[#Headers],[UTORAK]])*(ROUNDDOWN($B55,10)>=ROUNDDOWN(PopisPredavanja[VRIJEME POČETKA],10))*($B55<=PopisPredavanja[VRIJEME ZAVRŠETKA]),PopisPredavanja[JEDINSTVENO]),PopisPredavanja[JEDINSTVENO],0),2),0)","v":0},{"$f":"IFERROR(INDEX(PopisPredavanja[],MATCH(SUMPRODUCT((PopisPredavanja[DAN]=Raspored_sati[[#Headers],[SRIJEDA]])*(ROUNDDOWN($B55,10)>=ROUNDDOWN(PopisPredavanja[VRIJEME POČETKA],10))*($B55<=PopisPredavanja[VRIJEME ZAVRŠETKA]),PopisPredavanja[JEDINSTVENO]),PopisPredavanja[JEDINSTVENO],0),2),0)","v":0},{"$f":"IFERROR(INDEX(PopisPredavanja[],MATCH(SUMPRODUCT((PopisPredavanja[DAN]=Raspored_sati[[#Headers],[ČETVRTAK]])*(ROUNDDOWN($B55,10)>=ROUNDDOWN(PopisPredavanja[VRIJEME POČETKA],10))*($B55<=PopisPredavanja[VRIJEME ZAVRŠETKA]),PopisPredavanja[JEDINSTVENO]),PopisPredavanja[JEDINSTVENO],0),2),0)","v":0},{"$f":"IFERROR(INDEX(PopisPredavanja[],MATCH(SUMPRODUCT((PopisPredavanja[DAN]=Raspored_sati[[#Headers],[PETAK]])*(ROUNDDOWN($B55,10)>=ROUNDDOWN(PopisPredavanja[VRIJEME POČETKA],10))*($B55<=PopisPredavanja[VRIJEME ZAVRŠETKA]),PopisPredavanja[JEDINSTVENO]),PopisPredavanja[JEDINSTVENO],0),2),0)","v":0},{"$f":"IFERROR(INDEX(PopisPredavanja[],MATCH(SUMPRODUCT((PopisPredavanja[DAN]=Raspored_sati[[#Headers],[SUBOTA]])*(ROUNDDOWN($B55,10)>=ROUNDDOWN(PopisPredavanja[VRIJEME POČETKA],10))*($B55<=PopisPredavanja[VRIJEME ZAVRŠETKA]),PopisPredavanja[JEDINSTVENO]),PopisPredavanja[JEDINSTVENO],0),2),0)","v":0}]
[null,"21:00:00",{"$f":"IFERROR(INDEX(PopisPredavanja[],MATCH(SUMPRODUCT((PopisPredavanja[DAN]=Raspored_sati[[#Headers],[NEDJELJA]])*(ROUNDDOWN($B56,10)>=ROUNDDOWN(PopisPredavanja[VRIJEME POČETKA],10))*($B56<=PopisPredavanja[VRIJEME ZAVRŠETKA]),PopisPredavanja[JEDINSTVENO]),PopisPredavanja[JEDINSTVENO],0),2),0)","v":0},{"$f":"IFERROR(INDEX(PopisPredavanja[],MATCH(SUMPRODUCT((PopisPredavanja[DAN]=Raspored_sati[[#Headers],[PONEDJELJAK]])*(ROUNDDOWN($B56,10)>=ROUNDDOWN(PopisPredavanja[VRIJEME POČETKA],10))*($B56<=PopisPredavanja[VRIJEME ZAVRŠETKA]),PopisPredavanja[JEDINSTVENO]),PopisPredavanja[JEDINSTVENO],0),2),0)","v":0},{"$f":"IFERROR(INDEX(PopisPredavanja[],MATCH(SUMPRODUCT((PopisPredavanja[DAN]=Raspored_sati[[#Headers],[UTORAK]])*(ROUNDDOWN($B56,10)>=ROUNDDOWN(PopisPredavanja[VRIJEME POČETKA],10))*($B56<=PopisPredavanja[VRIJEME ZAVRŠETKA]),PopisPredavanja[JEDINSTVENO]),PopisPredavanja[JEDINSTVENO],0),2),0)","v":0},{"$f":"IFERROR(INDEX(PopisPredavanja[],MATCH(SUMPRODUCT((PopisPredavanja[DAN]=Raspored_sati[[#Headers],[SRIJEDA]])*(ROUNDDOWN($B56,10)>=ROUNDDOWN(PopisPredavanja[VRIJEME POČETKA],10))*($B56<=PopisPredavanja[VRIJEME ZAVRŠETKA]),PopisPredavanja[JEDINSTVENO]),PopisPredavanja[JEDINSTVENO],0),2),0)","v":0},{"$f":"IFERROR(INDEX(PopisPredavanja[],MATCH(SUMPRODUCT((PopisPredavanja[DAN]=Raspored_sati[[#Headers],[ČETVRTAK]])*(ROUNDDOWN($B56,10)>=ROUNDDOWN(PopisPredavanja[VRIJEME POČETKA],10))*($B56<=PopisPredavanja[VRIJEME ZAVRŠETKA]),PopisPredavanja[JEDINSTVENO]),PopisPredavanja[JEDINSTVENO],0),2),0)","v":0},{"$f":"IFERROR(INDEX(PopisPredavanja[],MATCH(SUMPRODUCT((PopisPredavanja[DAN]=Raspored_sati[[#Headers],[PETAK]])*(ROUNDDOWN($B56,10)>=ROUNDDOWN(PopisPredavanja[VRIJEME POČETKA],10))*($B56<=PopisPredavanja[VRIJEME ZAVRŠETKA]),PopisPredavanja[JEDINSTVENO]),PopisPredavanja[JEDINSTVENO],0),2),0)","v":0},{"$f":"IFERROR(INDEX(PopisPredavanja[],MATCH(SUMPRODUCT((PopisPredavanja[DAN]=Raspored_sati[[#Headers],[SUBOTA]])*(ROUNDDOWN($B56,10)>=ROUNDDOWN(PopisPredavanja[VRIJEME POČETKA],10))*($B56<=PopisPredavanja[VRIJEME ZAVRŠETKA]),PopisPredavanja[JEDINSTVENO]),PopisPredavanja[JEDINSTVENO],0),2),0)","v":0}]

{"sheet":"Popis predavanja","index":1,"n_rows":10,"n_cols":8,"rows_kept":10,"merged":[[0,1,0,5],[0,6,0,7]]}
[null,"POPIS PREDAVANJA",{"$nulls":4},"Raspored sati"]
[null,"PREDMET","ID","DAN","MJESTO","VRIJEME POČETKA","VRIJEME ZAVRŠETKA","JEDINSTVENO"]
[null,"Tehničko pisanje","WR-121","PONEDJELJAK","Zgrada A","13:00:00","14:00:00",{"$f":"ROW()-ROW(PopisPredavanja[[#Headers],[JEDINSTVENO]])","v":1}]
[null,"Tehničko pisanje","WR-121","SRIJEDA","Zgrada A","13:00:00","14:00:00",{"$f":"ROW()-ROW(PopisPredavanja[[#Headers],[JEDINSTVENO]])","v":2}]
[null,"Javno govorništvo","SP-111","PONEDJELJAK","Zgrada B","16:00:00","17:00:00",{"$f":"ROW()-ROW(PopisPredavanja[[#Headers],[JEDINSTVENO]])","v":3}]
[null,"Zdravlje i rekreacija","HPE-295","UTORAK","Zgrada B","11:00:00","12:00:00",{"$f":"ROW()-ROW(PopisPredavanja[[#Headers],[JEDINSTVENO]])","v":4}]
[null,"Zdravlje i rekreacija","HPE-295","ČETVRTAK","Zgrada B","11:00:00","12:00:00",{"$f":"ROW()-ROW(PopisPredavanja[[#Headers],[JEDINSTVENO]])","v":5}]
[null,"Algebra","MTH-113","PONEDJELJAK","Zgrada C","08:10:00","09:15:00",{"$f":"ROW()-ROW(PopisPredavanja[[#Headers],[JEDINSTVENO]])","v":6}]
[null,"Algebra","MTH-113","SRIJEDA","Zgrada C","08:10:00","09:15:00",{"$f":"ROW()-ROW(PopisPredavanja[[#Headers],[JEDINSTVENO]])","v":7}]
[null,"Algebra","MTH-113","PETAK","Zgrada C","08:10:00","09:15:00",{"$f":"ROW()-ROW(PopisPredavanja[[#Headers],[JEDINSTVENO]])","v":8}]